2CCN - Level 2 Cost Centre Name,,9CCN - Level 9 Cost Centre Name,9CCC - Level 9 Cost Centre Code,9AN - Level 9 Account Name,9AC - Level 9 Account Code,Transaction Description,Date Paid,Transaction Reference,Analysed Amount,2AC - Level 2 Account Codes,Supplier Name,Supplier Code
Gloucester City Council,23UE,Cemeteries,HC300,Maint Of Grounds - General,3030,Various Items,01/11/2016,425413,143.96,NET,Spaldings,48759Y
Gloucester City Council,23UE,REDACTED,REDACTED,REDACTED,REDACTED,REDACTED,01/11/2016,REDACTED,110,NET,REDACTED,REDACTED
Gloucester City Council,23UE,REDACTED,REDACTED,REDACTED,REDACTED,REDACTED,01/11/2016,REDACTED,86,NET,REDACTED,REDACTED
Gloucester City Council,23UE,REDACTED,REDACTED,REDACTED,REDACTED,REDACTED,01/11/2016,REDACTED,330,NET,REDACTED,REDACTED
Gloucester City Council,23UE,Hackney Carriages,HL100,Advertising And Publicity,5702,Advertisement 18/10/2016,01/11/2016,425392,438.24,NET,Local World Ltd,08556P
Gloucester City Council,23UE,Kings Quarter,RY146,Contract Payments,0020,Works at Bruton Way,01/11/2016,425566,25323,CAP,Vodafone,17256X
Gloucester City Council,23UE,Utilities,PT502,Electricity Supply,3110,GAS & ELECTRIC JUN16,01/11/2016,424964,51115.69,NET,West Mercia Energy,11669Z
Gloucester City Council,23UE,Utilities,PT502,Gas Supply,3100,GAS & ELECTRIC JUN16,01/11/2016,424964,262.29,NET,West Mercia Energy,11669Z
Gloucester City Council,23UE,Contact Centre,RB300,Stationery,5302,Staitonary,02/11/2016,425563,25.12,NET,Lyreco Uk Ltd,11746G
Gloucester City Council,23UE,Contact Centre,RB300,Stationery,5302,Stationary,02/11/2016,425561,52.48,NET,Lyreco Uk Ltd,11746G
Gloucester City Council,23UE,Contact Centre,RB300,Stationery,5302,Stationary,02/11/2016,425562,1.8,NET,Lyreco Uk Ltd,11746G
Gloucester City Council,23UE,Folk Museum,LM210,Publications For Sale,5064,Large Signs,02/11/2016,425557,24.96,NET,Half Moon Bay Ltd,08240F
Gloucester City Council,23UE,REDACTED,REDACTED,REDACTED,REDACTED,REDACTED,02/11/2016,REDACTED,330,NET,REDACTED,REDACTED
Gloucester City Council,23UE,Nms Contract,HI102,Operational Materials,5070,Purple Refuse Bags,02/11/2016,425246,903,NET,Polystar Plastics Ltd,01120C
Gloucester City Council,23UE,Robinswood All Paths Project,LY162,Contract Payments,0020,Road Repair,02/11/2016,425558,90,CAP,Gloucestershire Wildlife Management,49628F
Gloucester City Council,23UE,The Arbor,HC501,Catering Provisions -Food,5110,Food,02/11/2016,425559,48.96,NET,Total Produce Gloucester,12645E
Gloucester City Council,23UE,The Arbor,HC501,Catering Provisions -Food,5110,Food,02/11/2016,425560,35.95,NET,Total Produce Gloucester,12645E
Gloucester City Council,23UE,Business Transformation & Tech,RT700,Computer Hardware <5000,5420,card printer,03/11/2016,423755,955.74,NET,The Smart Card Store Ltd,17207L
Gloucester City Council,23UE,City Museum Catering,LM202,Catering Provisions -Food,5110,Milk,03/11/2016,425576,7.14,NET,Total Produce Gloucester,12645E
Gloucester City Council,23UE,City Museum Catering,LM202,Catering Provisions -Food,5110,Milk,03/11/2016,425577,4.76,NET,Total Produce Gloucester,12645E
Gloucester City Council,23UE,City Museum Catering,LM202,Catering Provisions -Food,5110,Milk,03/11/2016,425578,4.76,NET,Total Produce Gloucester,12645E
Gloucester City Council,23UE,City Museum Catering,LM202,Catering Provisions -Food,5110,Milk,03/11/2016,425579,4.76,NET,Total Produce Gloucester,12645E
Gloucester City Council,23UE,Client Revs & Bens Contract,RT240,Bailiffs Fees,5368,VAT on fees collected,03/11/2016,425146,0,NET,Phoenix Commercial Collections Ltd,13435J
Gloucester City Council,23UE,Contact Centre,RB300,Postages,5400,Post 07/10 - 20/10 2016,03/11/2016,425591,1358.03,NET,Royal Mail S.Wales & South West,35830S
Gloucester City Council,23UE,Crematorium,HC200,"Seeds, Trees, Plants, Shrubs",3028,Plants Supply,03/11/2016,422648,276.9,NET,Genus Plant Sourcing,14143S
Gloucester City Council,23UE,REDACTED,REDACTED,REDACTED,REDACTED,REDACTED,03/11/2016,REDACTED,1950,NET,REDACTED,REDACTED
Gloucester City Council,23UE,Development Management,PT200,Basic Pay - Temporary Staff,2751,temporary staff w/e 17 & 24 oct 16,03/11/2016,425596,2551.38,NET,The Oyster Partnership Limited,14900T
Gloucester City Council,23UE,Events,LT410,Events,5952,Docks Fireworks Event,03/11/2016,425678,7426.8,NET,Laser Hire,59139U
Gloucester City Council,23UE,Financial Services,RT200,Publications,5060,CODE OF PRACTICE BOOK 16/17,03/11/2016,425637,313.75,NET,Cipfa Business Limited,09260F
Gloucester City Council,23UE,Grants To Voluntary Sector,FG100,Abcd Grants,7100A,advice services 1/10/16 - 31/12/16,03/11/2016,425631,18880.5,NET,Gloucester Law Centre,18157R
Gloucester City Council,23UE,Grants To Voluntary Sector,FG100,Abcd Grants,7100A,advice services 1/10/16 - 31/12/16,03/11/2016,425633,15450.25,NET,Gloucester & District Citizens Advice Bureau,07709Y
Gloucester City Council,23UE,Grants To Voluntary Sector,FG100,Abcd Grants,7100A,advice services 1/7/16 - 30/9/16,03/11/2016,425632,18880.5,NET,Gloucester Law Centre,18157R
Gloucester City Council,23UE,Grants To Voluntary Sector,FG100,Abcd Grants,7100A,advice services 1/7/16 - 30/9/16,03/11/2016,425634,15450.25,NET,Gloucester & District Citizens Advice Bureau,07709Y
Gloucester City Council,23UE,REDACTED,REDACTED,REDACTED,REDACTED,REDACTED,03/11/2016,REDACTED,508.75,NET,REDACTED,REDACTED
Gloucester City Council,23UE,REDACTED,REDACTED,REDACTED,REDACTED,REDACTED,03/11/2016,REDACTED,3325,NET,REDACTED,REDACTED
Gloucester City Council,23UE,Grants To Voluntary Sector,FG100,Members Allocation Fund,7100F,members allocation grant,03/11/2016,425628,481,NET,The Friendship Cafe Ltd,14853A
Gloucester City Council,23UE,Guildhall Bar And Caf�,LA210,Fees For Services Received,5350,temporary staff w/e 23/10/2016,03/11/2016,425593,117.92,NET,Re People,17253D
Gloucester City Council,23UE,REDACTED,REDACTED,REDACTED,REDACTED,REDACTED,03/11/2016,REDACTED,100,NET,REDACTED,REDACTED
Gloucester City Council,23UE,REDACTED,REDACTED,REDACTED,REDACTED,REDACTED,03/11/2016,REDACTED,96.54,NET,REDACTED,REDACTED
Gloucester City Council,23UE,REDACTED,REDACTED,REDACTED,REDACTED,REDACTED,03/11/2016,REDACTED,255.31,NET,REDACTED,REDACTED
Gloucester City Council,23UE,REDACTED,REDACTED,REDACTED,REDACTED,REDACTED,03/11/2016,REDACTED,100,NET,REDACTED,REDACTED
Gloucester City Council,23UE,REDACTED,REDACTED,REDACTED,REDACTED,REDACTED,03/11/2016,REDACTED,489.44,NET,REDACTED,REDACTED
Gloucester City Council,23UE,REDACTED,REDACTED,REDACTED,REDACTED,REDACTED,03/11/2016,REDACTED,368.2,NET,REDACTED,REDACTED
Gloucester City Council,23UE,REDACTED,REDACTED,REDACTED,REDACTED,REDACTED,03/11/2016,REDACTED,384.84,NET,REDACTED,REDACTED
Gloucester City Council,23UE,REDACTED,REDACTED,REDACTED,REDACTED,REDACTED,03/11/2016,REDACTED,530,NET,REDACTED,REDACTED
Gloucester City Council,23UE,REDACTED,REDACTED,REDACTED,REDACTED,REDACTED,03/11/2016,REDACTED,400,NET,REDACTED,REDACTED
Gloucester City Council,23UE,REDACTED,REDACTED,REDACTED,REDACTED,REDACTED,03/11/2016,REDACTED,630,NET,REDACTED,REDACTED
Gloucester City Council,23UE,Investment Property,RB500,General Repair/Maint Buildings,3000,Repairs,03/11/2016,425573,300.87,NET,Mitchells (Gloucester) Ltd,30160U
Gloucester City Council,23UE,Licences,HE510,Advertising And Publicity,5702,adverts,03/11/2016,424607,467.46,NET,Local World Ltd,08556P
Gloucester City Council,23UE,Nms Contract,HI102,Additional Non-Tender Items,6973,54 cartons,03/11/2016,424309,1063.26,NET,Polystar Plastics Ltd,01120C
Gloucester City Council,23UE,Pollution Control,HE300,Fees For Services Received,5350,Storage Oct 2016,03/11/2016,425383,80,NET,Harry Buckland,16135W
Gloucester City Council,23UE,The Arbor,HC501,Catering Provisions -Food,5110,Food,03/11/2016,425585,34.69,NET,Total Produce Gloucester,12645E
Gloucester City Council,23UE,The Arbor,HC501,Catering Provisions -Food,5110,Food,03/11/2016,425586,17.5,NET,Total Produce Gloucester,12645E
Gloucester City Council,23UE,The Arbor,HC501,Catering Provisions -Food,5110,Food,03/11/2016,425588,19.58,NET,Total Produce Gloucester,12645E
Gloucester City Council,23UE,The Arbor,HC501,Catering Provisions -Food,5110,Milk,03/11/2016,425587,5.95,NET,Total Produce Gloucester,12645E
Gloucester City Council,23UE,Allotments,HI104,Fees For Services Received,5350,Annual Support Fee,04/11/2016,423102,457,NET,Mcpc Systems (Uk) Ltd,14043X
Gloucester City Council,23UE,Business Transformation & Tech,RT700,Computer Software <5000,5425,data storage charge MAR-MAY16,04/11/2016,424286,1113.48,NET,Abritas Ltd,10222J
Gloucester City Council,23UE,Business Transformation & Tech,RT700,Computer Software <5000,5425,Nova HX hosting,04/11/2016,424285,790,NET,Abritas Ltd,10222J
Gloucester City Council,23UE,Car Parks,GY002,Contract Payments,0020,ParkAdvance equipment,04/11/2016,424255,45735.1,CAP,Wps United Kingdom Ltd,16424K
Gloucester City Council,23UE,Cemeteries,HC300,Operational Materials,5070,SERVICE/REPAIR,04/11/2016,424575,20,NET,Machine Mart Ltd*,55207G
Gloucester City Council,23UE,Countryside Unit,LP201,Repair/Maint Of Fixed Plant,3006,wedge belts,04/11/2016,425651,81,NET,A C Belting Ltd,00250X
Gloucester City Council,23UE,Docks Complex - Services,RB100,Recycling,3631,BLACKFRIARS RECYCLING,04/11/2016,424811,34.5,NET,Printwaste Recycling,57114W
Gloucester City Council,23UE,Docks Complex - Services,RB100,Recycling,3631,docks recycling,04/11/2016,424766,216.5,NET,Printwaste Recycling,57114W
Gloucester City Council,23UE,Docks Complex - Services,RB100,Recycling,3631,GUILDHALL RECYCLING,04/11/2016,424810,57,NET,Printwaste Recycling,57114W
Gloucester City Council,23UE,REDACTED,REDACTED,REDACTED,REDACTED,REDACTED,04/11/2016,REDACTED,100,NET,REDACTED,REDACTED
Gloucester City Council,23UE,REDACTED,REDACTED,REDACTED,REDACTED,REDACTED,04/11/2016,REDACTED,770,NET,REDACTED,REDACTED
Gloucester City Council,23UE,Homelessness,CH120,Fees For Services Received,5350,Housing RIA & Deposit,04/11/2016,425691,400,NET,Trimed Properties Ltd,17457J
Gloucester City Council,23UE,Homelessness,CH120,Rent In Advance,5516,Housing RIA & Deposit,04/11/2016,425687,489.44,NET,Trimed Properties Ltd,17457J
Gloucester City Council,23UE,Homelessness,CH120,Rent In Advance,5516,Housing RIA & Deposit,04/11/2016,425689,368.2,NET,Trimed Properties Ltd,17457J
Gloucester City Council,23UE,Homelessness,CH120,Rent In Advance,5516,Housing RIA & Deposit,04/11/2016,425690,489.44,NET,Trimed Properties Ltd,17457J
Gloucester City Council,23UE,Homelessness,CH120,Rent In Advance,5516,Housing RIA & Deposit,04/11/2016,425688,368.2,NET,Trimed Properties Ltd,17457J
Gloucester City Council,23UE,Homelessness,CH120,Rent In Advance,5516,Housing RIA & Deposit,04/11/2016,425692,368.2,NET,Trimed Properties Ltd,17457J
Gloucester City Council,23UE,REDACTED,REDACTED,REDACTED,REDACTED,REDACTED,04/11/2016,REDACTED,489.44,NET,REDACTED,REDACTED
Gloucester City Council,23UE,REDACTED,REDACTED,REDACTED,REDACTED,REDACTED,04/11/2016,REDACTED,368.2,NET,REDACTED,REDACTED
Gloucester City Council,23UE,Homelessness Prevention,CH122,Fees For Services Received,5350,Housing RIA & Deposit,04/11/2016,425687,400,NET,Trimed Properties Ltd,17457J
Gloucester City Council,23UE,Homelessness Prevention,CH122,Fees For Services Received,5350,Housing RIA & Deposit,04/11/2016,425689,400,NET,Trimed Properties Ltd,17457J
Gloucester City Council,23UE,Homelessness Prevention,CH122,Fees For Services Received,5350,Housing RIA & Deposit,04/11/2016,425690,500,NET,Trimed Properties Ltd,17457J
Gloucester City Council,23UE,Homelessness Prevention,CH122,Fees For Services Received,5350,Housing RIA & Deposit,04/11/2016,425688,400,NET,Trimed Properties Ltd,17457J
Gloucester City Council,23UE,Homelessness Prevention,CH122,Fees For Services Received,5350,Housing RIA & Deposit,04/11/2016,425692,400,NET,Trimed Properties Ltd,17457J
Gloucester City Council,23UE,REDACTED,REDACTED,REDACTED,REDACTED,REDACTED,04/11/2016,REDACTED,550,NET,REDACTED,REDACTED
Gloucester City Council,23UE,Homelessness Prevention,CH122,Rent In Advance,5516,Housing RIA & Deposit,04/11/2016,425691,368.2,NET,Trimed Properties Ltd,17457J
Gloucester City Council,23UE,Investment Property,RB500,General Repair/Maint Buildings,3000,FOLK MUSEUM 12/1/16,04/11/2016,415509,53,NET,Allcoopers Ltd,52921E
Gloucester City Council,23UE,Investment Property,RB500,General Repair/Maint Buildings,3000,FOLK MUSEUM 28/1/16,04/11/2016,415470,70,NET,Allcoopers Ltd,52921E
Gloucester City Council,23UE,Investment Property,RB500,General Repair/Maint Buildings,3000,GUILDHALL 16/12/15,04/11/2016,415507,70,NET,Allcoopers Ltd,52921E
Gloucester City Council,23UE,Investment Property,RB500,General Repair/Maint Buildings,3000,"Monitoring of fire alarm system,14/15",04/11/2016,394277,273.37,NET,Allcoopers Ltd,52921E
Gloucester City Council,23UE,Mandatory Rent Allowances,DD100,Rent Allowances - Normal Payts,7200,Housing RIA & Deposit,04/11/2016,425691,400,NET,Trimed Properties Ltd,17457J
Gloucester City Council,23UE,Mandatory Rent Allowances,DD100,Rent Allowances - Normal Payts,7200,Housing RIA & Deposit,04/11/2016,425687,400,NET,Trimed Properties Ltd,17457J
Gloucester City Council,23UE,Mandatory Rent Allowances,DD100,Rent Allowances - Normal Payts,7200,Housing RIA & Deposit,04/11/2016,425689,400,NET,Trimed Properties Ltd,17457J
Gloucester City Council,23UE,Mandatory Rent Allowances,DD100,Rent Allowances - Normal Payts,7200,Housing RIA & Deposit,04/11/2016,425690,400,NET,Trimed Properties Ltd,17457J
Gloucester City Council,23UE,Mandatory Rent Allowances,DD100,Rent Allowances - Normal Payts,7200,Housing RIA & Deposit,04/11/2016,425688,400,NET,Trimed Properties Ltd,17457J
Gloucester City Council,23UE,Mandatory Rent Allowances,DD100,Rent Allowances - Normal Payts,7200,Housing RIA & Deposit,04/11/2016,425692,400,NET,Trimed Properties Ltd,17457J
Gloucester City Council,23UE,REDACTED,REDACTED,REDACTED,REDACTED,REDACTED,04/11/2016,REDACTED,900,NET,REDACTED,REDACTED
Gloucester City Council,23UE,Public Conveniences (Client),HI400,Contracted Services,6970,Toilet Scheme - Oct 16,04/11/2016,425696,300,NET,The Warehouse Climbing Centre,11162S
Gloucester City Council,23UE,Public Conveniences (Client),HI400,Contracted Services,6970,Toilet Scheme Oct 16,04/11/2016,425694,300,NET,Hucclecote Community Association,23020B
Gloucester City Council,23UE,Public Conveniences (Client),HI400,Contracted Services,6970,Toilet Scheme Oct 16,04/11/2016,425695,300,NET,Moon And Food Company Ltd,11166H
Gloucester City Council,23UE,Public Conveniences (Client),HI400,Contracted Services,6970,Toilet Scheme Oct 16,04/11/2016,425697,300,NET,Eastgate Shopping Centre,11026K
Gloucester City Council,23UE,Public Conveniences (Client),HI400,Contracted Services,6970,Toilet Scheme Oct 16,04/11/2016,425698,300,NET,Samuel Smith Old Brewery,11161U
Gloucester City Council,23UE,Public Conveniences (Client),HI400,Contracted Services,6970,Toilet Scheme - Oct 2016,04/11/2016,425693,300,NET,Imperial Inn,13422U
Gloucester City Council,23UE,Ranger Centre/Netheridge Wks,RY167,Contract Payments,0020,Brushcutter,04/11/2016,425570,487.44,CAP,E Buckland,17238Z
Gloucester City Council,23UE,Statutory Testing,RS310,Fire Alarm Maintenance,3053,Fire Alarm System - Crem,04/11/2016,422559,218,NET,Allcoopers Ltd,52921E
Gloucester City Council,23UE,Statutory Testing,RS310,Internal Decs - Communal Areas,3050,Monthly Callouts Aug 16,04/11/2016,423681,228.22,NET,Allcoopers Ltd,52921E
Gloucester City Council,23UE,Utilities,PT502,Electricity Supply,3110,acct 877073 final bill,04/11/2016,423781,4.01,NET,Opus Energy (Corporate),12788B
Gloucester City Council,23UE,Utilities,PT502,Electricity Supply,3110,Charges 16 The Forum acct 877073,04/11/2016,422671,115.56,NET,Opus Energy (Corporate),12788B
Gloucester City Council,23UE,Cemeteries,HC300,Trade Refuse Tipping Fees,6297,rolonof skip exchange,07/11/2016,425682,792.4,NET,Allstone Sand & Gravel Aggregates Ltd,00940M
Gloucester City Council,23UE,Cemeteries,HC300,Trade Refuse Tipping Fees,6297,ROLONOF SKIP EXCHANGE,07/11/2016,425681,640,NET,Allstone Sand & Gravel Aggregates Ltd,00940M
Gloucester City Council,23UE,Cemeteries,HC300,Trade Refuse Tipping Fees,6297,skip exchange,07/11/2016,425683,420,NET,Allstone Sand & Gravel Aggregates Ltd,00940M
Gloucester City Council,23UE,Homelessness,CH120,Rent In Advance,5516,HOUSING RIA & DHP,07/11/2016,425796,489.44,NET,Trimed Properties Ltd,17457J
Gloucester City Council,23UE,REDACTED,REDACTED,REDACTED,REDACTED,REDACTED,07/11/2016,REDACTED,489.44,NET,REDACTED,REDACTED
Gloucester City Council,23UE,REDACTED,REDACTED,REDACTED,REDACTED,REDACTED,07/11/2016,REDACTED,1000,NET,REDACTED,REDACTED
Gloucester City Council,23UE,Mandatory Rent Allowances,DD100,Rent Allowances - Normal Payts,7200,HOUSING RIA & DHP,07/11/2016,425796,800,NET,Trimed Properties Ltd,17457J
Gloucester City Council,23UE,REDACTED,REDACTED,REDACTED,REDACTED,REDACTED,07/11/2016,REDACTED,400,NET,REDACTED,REDACTED
Gloucester City Council,23UE,Vehicles,RS140,Fuel,4012,DIESEL & UNLEADED,07/11/2016,425323,233.32,NET,Allstar Business Solutions Ltd (Arval),06594A
Gloucester City Council,23UE,Vehicles,RS140,Fuel,4012,vehicle fuel,07/11/2016,425680,145.39,NET,Allstar Business Solutions Ltd (Arval),06594A
Gloucester City Council,23UE,Blackfriars,LA609,Security Services Fees,5351,Door Staff October 2016,08/11/2016,425818,337.5,NET,Nsgl Ltd (Security Acct),12539E
Gloucester City Council,23UE,Council Streetcare Team,HI101,Maint Of Grounds - General,3030,Alma Place Asbestos Samples,08/11/2016,423942,150,NET,Gloucester Asbestos Ltd,00496K
Gloucester City Council,23UE,Council Streetcare Team,HI101,Maint Of Grounds - General,3030,various works,08/11/2016,425684,50,NET,Enterprise (Aol) Ltd,06695G
Gloucester City Council,23UE,Council Streetcare Team,HI101,Signs / Nameplates,3039,various works,08/11/2016,425684,135,NET,Enterprise (Aol) Ltd,06695G
Gloucester City Council,23UE,Flooding And Drainage,HE306,Maint Of Grounds - General,3030,Clearance & Disposal,08/11/2016,425728,1008.6,NET,Rdb Safety Boat Ltd,13507J
Gloucester City Council,23UE,Grants To Voluntary Sector,FG100,Members Allocation Fund,7100F,Matson Gateway Fruit & Veg Project,08/11/2016,424430,3000,NET,Gloucestershire Gateway Trust,17225J
Gloucester City Council,23UE,REDACTED,REDACTED,REDACTED,REDACTED,REDACTED,08/11/2016,REDACTED,1877,NET,REDACTED,REDACTED
Gloucester City Council,23UE,REDACTED,REDACTED,REDACTED,REDACTED,REDACTED,08/11/2016,REDACTED,1500,NET,REDACTED,REDACTED
Gloucester City Council,23UE,Guildhall Events,LA200,Security Services Fees,5351,Door Staff October 2016,08/11/2016,425818,915.75,NET,Nsgl Ltd (Security Acct),12539E
Gloucester City Council,23UE,Interest Payable,VR100,Int On Market Temp.Borrowing,7810,LOAN INTEREST DUE 11/11/16,08/11/2016,425859,1449.04,NET,City And County Of Swansea,61876Z
Gloucester City Council,23UE,Interest Payable,VR100,Int On Market Temp.Borrowing,7810,LOAN INTEREST DUE 28/11/16,08/11/2016,425860,1460.82,NET,City And County Of Swansea,61876Z
Gloucester City Council,23UE,Kings Quarter,RY146,Contract Payments,0020,Bus station diversionary works,08/11/2016,425735,56343.11,CAP,Bt Openreach,06042Y
Gloucester City Council,23UE,Parks Contract Management,LP100,Maint Of Grounds - General,3030,various works,08/11/2016,425684,433.38,NET,Enterprise (Aol) Ltd,06695G
Gloucester City Council,23UE,Pollution Control,HE300,Fees For Services Received,5350,Collection & Disposal,08/11/2016,425567,80,NET,Harry Buckland,16135W
Gloucester City Council,23UE,Pollution Control,HE300,Fees For Services Received,5350,Collection & Disposal,08/11/2016,425568,80,NET,Harry Buckland,16135W
Gloucester City Council,23UE,Pollution Control,HE300,Fees For Services Received,5350,Collection & Storage,08/11/2016,425569,80,NET,Harry Buckland,16135W
Gloucester City Council,23UE,Retail Market - Landlord,HM300,Sewerage And Environ Charges,3402,Various Cleaning Items,08/11/2016,425389,1669.24,NET,Phs Group Ltd,55193S
Gloucester City Council,23UE,Senior Management Restructurin,RO200,Pension Contribs Incl Backf,2901,Oct 16 & Nov 16,08/11/2016,425817,26210.38,NET,Gloucestershire County Council,10614L
Gloucester City Council,23UE,The Arbor,HC501,Cleaning Materials,3600,Arbor sanitary units,08/11/2016,424934,34.56,NET,Minster Cleaning Services,02158R
Gloucester City Council,23UE,The Arbor,HC501,Cleaning Materials,3600,sanitary disposal unit,08/11/2016,424642,17.28,NET,Minster Cleaning Services,02158R
Gloucester City Council,23UE,Vehicles,RS140,Fuel,4012,vehicle fuel,08/11/2016,425719,120.85,NET,Allstar Business Solutions Ltd (Arval),06594A
Gloucester City Council,23UE,Westgate Leisure Area S106,LY155,Contract Payments,0020,Westgate Park Works,08/11/2016,425819,16949.55,CAP,Rf Gardiner Limited,12299B
Gloucester City Council,23UE,REDACTED,REDACTED,REDACTED,REDACTED,REDACTED,08/11/2016,REDACTED,1400,NET,REDACTED,REDACTED
Gloucester City Council,23UE,Allotments,HI104,Water Supply,3400,Aquafund Agreement Charges Oct 16,09/11/2016,425739,144.29,NET,Advanced Demand Side Management Ltd,16229K
Gloucester City Council,23UE,Asset Management,RS300,Basic Pay - Temporary Staff,2751,OCT16 consultancy services,09/11/2016,425745,7350,NET,Ardley Associates,09369F
Gloucester City Council,23UE,Business Transformation & Tech,RT700,Licences,5703,Address lookup 3rd party software,09/11/2016,425784,1000,NET,Toptix (Uk) Ltd,16411V
Gloucester City Council,23UE,Business Transformation & Tech,RT700,Subscriptions,5600,Insight Service 2017,09/11/2016,425781,1035,NET,Socitm Service Ltd,52552P
Gloucester City Council,23UE,Bus Station,RB400,Water Supply,3400,Aquafund Agreement Charges Oct 16,09/11/2016,425739,41.66,NET,Advanced Demand Side Management Ltd,16229K
Gloucester City Council,23UE,Cemeteries,HC300,Maint Of Grounds - General,3030,memorial repairs,09/11/2016,425775,250,NET,F J Cambridge & Co Ltd,48841N
Gloucester City Council,23UE,Cemeteries,HC300,Maint Of Grounds - General,3030,yew tree works,09/11/2016,425776,170,NET,Jpu Services Ltd,11056K
Gloucester City Council,23UE,Cemeteries,HC300,Operational Materials,5070,keys,09/11/2016,425772,28,NET,Frank Sutton Ltd - Agric'L Engineer,42875D
Gloucester City Council,23UE,City Museum And Art Gallery,LM200,Publications For Sale,5064,goods for resale,09/11/2016,425790,57.6,NET,The Puppet Company,14242N
Gloucester City Council,23UE,Contact Centre,RB300,Stationery,5302,flipchart pads,09/11/2016,425774,7.92,NET,Lyreco Uk Ltd,11746G
Gloucester City Council,23UE,Council Streetcare Team,HI101,Water Supply,3400,Aquafund Agreement Charges Oct 16,09/11/2016,425739,15.69,NET,Advanced Demand Side Management Ltd,16229K
Gloucester City Council,23UE,Countryside Unit,LP201,Water Supply,3400,Aquafund Agreement Charges Oct 16,09/11/2016,425739,12.4,NET,Advanced Demand Side Management Ltd,16229K
Gloucester City Council,23UE,Crematorium,HC200,Memorial Plaques,5053,plaque,09/11/2016,425743,400,NET,Arkell & Hurcombe,59812T
Gloucester City Council,23UE,Crematorium,HC200,Water Supply,3400,Aquafund Agreement Charges Oct 16,09/11/2016,425739,3.52,NET,Advanced Demand Side Management Ltd,16229K
Gloucester City Council,23UE,"Cricket,3 Choirs,Cathedral",LA612,Advertising And Publicity,5702,e-Newsletter Oct 16,09/11/2016,425736,125,NET,Moose Marketing & Pr,03952A
Gloucester City Council,23UE,Development Management,PT200,Advertising And Publicity,5702,Adverts Press Notice: 13.10.16,09/11/2016,425786,379.81,NET,Local World Ltd,08556P
Gloucester City Council,23UE,Development Management,PT200,Advertising And Publicity,5702,adverts Press Notice : 6th October 2016,09/11/2016,425785,262.94,NET,Local World Ltd,08556P
Gloucester City Council,23UE,Development Management,PT200,Advertising And Publicity,5702,Press Notice : 20th October 2016,09/11/2016,425787,175.3,NET,Local World Ltd,08556P
Gloucester City Council,23UE,Development Management,PT200,Basic Pay - Temporary Staff,2751,Temoprary staff w/e 03/10/2016,09/11/2016,425806,1452.75,NET,The Oyster Partnership Limited,14900T
Gloucester City Council,23UE,Development Management,PT200,Basic Pay - Temporary Staff,2751,Temporary staff w/e 24/10/2016,09/11/2016,425726,513.63,NET,The Oyster Partnership Limited,14900T
Gloucester City Council,23UE,Docks Complex - Castlemeads Cp,RB210,Contracted Services,6970,GC P&D and Head Cams,09/11/2016,425721,2119.66,NET,Apcoa Parking (Uk) Ltd,09954M
Gloucester City Council,23UE,Docks Complex - Castlemeads Cp,RB210,Contracted Services,6970,GC Variable Enforecement,09/11/2016,425722,786.18,NET,Apcoa Parking (Uk) Ltd,09954M
Gloucester City Council,23UE,Docks Complex - Castlemeads Cp,RB210,Contracted Services,6970,GC Vehicles,09/11/2016,425723,460.16,NET,Apcoa Parking (Uk) Ltd,09954M
Gloucester City Council,23UE,Docks Complex - Catering Servs,RB110,Catering Provisions -Food,5110,food,09/11/2016,425760,15.08,NET,Total Produce Gloucester,12645E
Gloucester City Council,23UE,Docks Complex - Catering Servs,RB110,Catering Provisions -Food,5110,food,09/11/2016,425761,12.13,NET,Total Produce Gloucester,12645E
Gloucester City Council,23UE,Docks Complex - Catering Servs,RB110,Catering Provisions -Food,5110,food,09/11/2016,425762,13.7,NET,Total Produce Gloucester,12645E
Gloucester City Council,23UE,Docks Complex - Catering Servs,RB110,Catering Provisions -Food,5110,food,09/11/2016,425763,10.61,NET,Total Produce Gloucester,12645E
Gloucester City Council,23UE,Docks Complex - Catering Servs,RB110,Catering Provisions -Food,5110,food,09/11/2016,425764,13.37,NET,Total Produce Gloucester,12645E
Gloucester City Council,23UE,Docks Complex - Catering Servs,RB110,Catering Provisions -Food,5110,food,09/11/2016,425765,10.82,NET,Total Produce Gloucester,12645E
Gloucester City Council,23UE,Docks Complex - Catering Servs,RB110,Catering Provisions -Food,5110,food,09/11/2016,425766,4.32,NET,Total Produce Gloucester,12645E
Gloucester City Council,23UE,Docks Complex - Catering Servs,RB110,Catering Provisions -Food,5110,food,09/11/2016,425767,4.32,NET,Total Produce Gloucester,12645E
Gloucester City Council,23UE,Docks Complex - Catering Servs,RB110,Catering Provisions -Food,5110,food,09/11/2016,425768,7.2,NET,Total Produce Gloucester,12645E
Gloucester City Council,23UE,Docks Complex - Catering Servs,RB110,Catering Provisions -Food,5110,food,09/11/2016,425769,61.52,NET,Janes Pantry,24500W
Gloucester City Council,23UE,Docks Complex - Catering Servs,RB110,Catering Provisions -Food,5110,food,09/11/2016,425770,122.4,NET,Janes Pantry,24500W
Gloucester City Council,23UE,Docks Complex - Services,RB100,Water Supply,3400,Aquafund Agreement Charges Oct 16,09/11/2016,425739,23.44,NET,Advanced Demand Side Management Ltd,16229K
Gloucester City Council,23UE,Financial Services,RT200,Basic Pay - Temporary Staff,2751,Temporary staff w/e 23/10/2016,09/11/2016,425730,437.58,NET,Venn Group Ltd,04339P
Gloucester City Council,23UE,Financial Services,RT200,Vocational Training,2970,BRR seminar delegate,09/11/2016,424316,150,NET,Lg Futures,11251S
Gloucester City Council,23UE,Folk Museum,LM210,Care Of Collections,5039,polyester tape,09/11/2016,425759,35.45,NET,Preservation Equipment Ltd,16494M
Gloucester City Council,23UE,Gl1 Emergency Works,RY160,Contract Payments,0020,cogged wedge belts,09/11/2016,425752,81,CAP,A C Belting Ltd,00250X
Gloucester City Council,23UE,REDACTED,REDACTED,REDACTED,REDACTED,REDACTED,09/11/2016,REDACTED,580,NET,REDACTED,REDACTED
Gloucester City Council,23UE,Hackney Carriages,HL100,Fees For Services Received,5350,DVLA checks,09/11/2016,424685,79.75,NET,Intelligent Data Systems (Uk) Ltd,11067G
Gloucester City Council,23UE,Hackney Carriages,HL100,Fees For Services Received,5350,DVLA Electronic Check,09/11/2016,423556,43.5,NET,Intelligent Data Systems (Uk) Ltd,11067G
Gloucester City Council,23UE,REDACTED,REDACTED,REDACTED,REDACTED,REDACTED,09/11/2016,REDACTED,400,NET,REDACTED,REDACTED
Gloucester City Council,23UE,Investment Property,RB500,Water Supply,3400,Aquafund Agreement Charges Oct 16,09/11/2016,425739,49.31,NET,Advanced Demand Side Management Ltd,16229K
Gloucester City Council,23UE,Off Street Car Parks,PP110,Contracted Services,6970,GC Fixed Overhead,09/11/2016,425724,773.48,NET,Apcoa Parking (Uk) Ltd,09954M
Gloucester City Council,23UE,Off Street Car Parks,PP110,Contracted Services,6970,GC Other Items,09/11/2016,425720,12922.66,NET,Apcoa Parking (Uk) Ltd,09954M
Gloucester City Council,23UE,Off Street Car Parks,PP110,Contracted Services,6970,GC Variable Enforecement,09/11/2016,425722,3430.83,NET,Apcoa Parking (Uk) Ltd,09954M
Gloucester City Council,23UE,Off Street Car Parks,PP110,Lease Lines,5411,ticket rolls,09/11/2016,425793,250,NET,Wps United Kingdom Ltd,16424K
Gloucester City Council,23UE,Off Street Car Parks,PP110,Water Supply,3400,Aquafund Agreement Charges Oct 16,09/11/2016,425739,1.19,NET,Advanced Demand Side Management Ltd,16229K
Gloucester City Council,23UE,Planning Policy & Heritage,PT300,Basic Pay - Temporary Staff,2751,temporary staff w/e 03/10/16,09/11/2016,425141,2329.19,NET,The Oyster Partnership Limited,14900T
Gloucester City Council,23UE,Planning Policy & Heritage,PT300,Basic Pay - Temporary Staff,2751,temporary staff w/e 10/10/16,09/11/2016,425275,2271.58,NET,The Oyster Partnership Limited,14900T
Gloucester City Council,23UE,Planning Policy & Heritage,PT300,Basic Pay - Temporary Staff,2751,temporary staff w/e 24/10/2016,09/11/2016,425725,778.5,NET,The Oyster Partnership Limited,14900T
Gloucester City Council,23UE,Planning Policy & Heritage,PT300,Basic Pay - Temporary Staff,2751,Temporary staff  w/e 17 & 24 oct 16,09/11/2016,425598,3822.92,NET,The Oyster Partnership Limited,14900T
Gloucester City Council,23UE,Public Conveniences (Client),HI400,Water Supply,3400,Aquafund Agreement Charges Oct 16,09/11/2016,425739,1.06,NET,Advanced Demand Side Management Ltd,16229K
Gloucester City Council,23UE,Ranger Centre/Netheridge Wks,RY167,Contract Payments,0020,brushcutter service,09/11/2016,425758,50.49,CAP,Garden Machinery Gloucester,55641K
Gloucester City Council,23UE,The Arbor,HC501,Catering Provisions -Food,5110,food,09/11/2016,425746,40.42,NET,Total Produce Gloucester,12645E
Gloucester City Council,23UE,The Arbor,HC501,Catering Provisions -Food,5110,food,09/11/2016,425747,4.76,NET,Total Produce Gloucester,12645E
Gloucester City Council,23UE,The Arbor,HC501,Catering Provisions -Food,5110,food,09/11/2016,425748,55.73,NET,Total Produce Gloucester,12645E
Gloucester City Council,23UE,The Arbor,HC501,Catering Provisions -Food,5110,food,09/11/2016,425749,20.75,NET,Total Produce Gloucester,12645E
Gloucester City Council,23UE,The Arbor,HC501,Catering Provisions -Food,5110,food,09/11/2016,425750,48.97,NET,Total Produce Gloucester,12645E
Gloucester City Council,23UE,Alney Island,PY128,Contract Payments,0020,Alney Island,10/11/2016,425822,12950,CAP,Glebe Contractors,07906U
Gloucester City Council,23UE,Business Transformation & Tech,RT700,Computer Hardware <5000,5420,Various Items,10/11/2016,425554,409,NET,Dell Computers Corporation Ltd,55920C
Gloucester City Council,23UE,Business Transformation & Tech,RT700,Computer Software <5000,5425,ADDITIONAL CHARGE FOR EXCEEDING DATA STO,10/11/2016,425909,1153.08,NET,Abritas Ltd,10222J
Gloucester City Council,23UE,Business Transformation & Tech,RT700,Computer Software <5000,5425,ADDITIONAL CHARGE FOR EXCEEDING DATA STO,10/11/2016,425910,1054.08,NET,Abritas Ltd,10222J
Gloucester City Council,23UE,Development Management,PT200,Fees For Services Received,5350,Review of Lighting Impact Assessment,10/11/2016,425744,1785,NET,Designs For Lighting Ltd,17219D
Gloucester City Council,23UE,Disabled Facilities Grants,CY013,Disabled Facility Grants,0074,Disabled Facilities Grant DFG MDF5221,10/11/2016,425923,1135,CAP,Stroud Stairlifts,10315A
Gloucester City Council,23UE,Disabled Facilities Grants,CY013,Disabled Facility Grants,0074,Disabled Facilities Grant DFG MDF5215,10/11/2016,425922,887,CAP,Tpg Disableaids,51324R
Gloucester City Council,23UE,Guildhall Cinema,LA202,Hire Of Equipment,5020,lighting case 24/10/16,10/11/2016,425893,19.5,NET,Nft Logistics Ltd,13505N
Gloucester City Council,23UE,REDACTED,REDACTED,REDACTED,REDACTED,REDACTED,10/11/2016,REDACTED,650,NET,REDACTED,REDACTED
Gloucester City Council,23UE,REDACTED,REDACTED,REDACTED,REDACTED,REDACTED,10/11/2016,REDACTED,600,NET,REDACTED,REDACTED
Gloucester City Council,23UE,Hackney Carriages,HL100,Fees For Services Received,5350,October 2016,10/11/2016,425727,660,NET,Disclosure And Barring Service,00119W
Gloucester City Council,23UE,Homelessness,CH120,Board And Lodging,5515,various tenants,10/11/2016,425916,6481.5,NET,James Legge Property (Ltd),07844R
Gloucester City Council,23UE,Homelessness,CH120,Board And Lodging,5515,various tenants,10/11/2016,425920,3755.22,NET,Dorchester Guest House,12298D
Gloucester City Council,23UE,Homelessness,CH120,Board And Lodging,5515,Jubilee House,10/11/2016,425917,6944,NET,REDACTED,REDACTED
Gloucester City Council,23UE,Homelessness,CH120,Board And Lodging,5515,October 2016,10/11/2016,425915,3839.7,NET,Carbrey Housing Ltd,11098G
Gloucester City Council,23UE,Homelessness,CH120,Board And Lodging,5515,October 2016 Payments,10/11/2016,425914,3425.08,NET,Kalmwood Ltd,08568G
Gloucester City Council,23UE,REDACTED,REDACTED,REDACTED,REDACTED,REDACTED,10/11/2016,REDACTED,12142.16,NET,REDACTED,REDACTED
Gloucester City Council,23UE,REDACTED,REDACTED,REDACTED,REDACTED,REDACTED,10/11/2016,REDACTED,1489.02,NET,REDACTED,REDACTED
Gloucester City Council,23UE,REDACTED,REDACTED,REDACTED,REDACTED,REDACTED,10/11/2016,REDACTED,3502.06,NET,REDACTED,REDACTED
Gloucester City Council,23UE,Investment Property,RB500,Asbestos Management Plan,3003,Asbestos Sample,10/11/2016,423941,145,NET,Gloucester Asbestos Ltd,00496K
Gloucester City Council,23UE,Nms Contract,HI102,Additional Non-Tender Items,6973,recycling boxes & caddies,10/11/2016,425751,6739.2,NET,Enterprise (Aol) Ltd,06695G
Gloucester City Council,23UE,Off Street Car Parks,PP110,Contracted Services,6970,Adjustments,10/11/2016,425572,454,NET,Patrol,09431C
Gloucester City Council,23UE,Taxi Marshalling Scheme,HL101,Taxi Marshals,5387,taxi marshalls 12/8 & 13/8/16,10/11/2016,425900,109.25,NET,Cuff Facilities Ltd,16436C
Gloucester City Council,23UE,Taxi Marshalling Scheme,HL101,Taxi Marshals,5387,taxi marshalls 15 & 16 JUL16,10/11/2016,425895,172.5,NET,Cuff Facilities Ltd,16436C
Gloucester City Council,23UE,Taxi Marshalling Scheme,HL101,Taxi Marshals,5387,taxi marshalls 16/9 & 17/9/16,10/11/2016,425903,172.5,NET,Cuff Facilities Ltd,16436C
Gloucester City Council,23UE,Taxi Marshalling Scheme,HL101,Taxi Marshals,5387,taxi marshalls 19/8 & 20/8/16,10/11/2016,425899,115,NET,Cuff Facilities Ltd,16436C
Gloucester City Council,23UE,Taxi Marshalling Scheme,HL101,Taxi Marshals,5387,taxi marshalls 22/7/16,10/11/2016,425896,172.5,NET,Cuff Facilities Ltd,16436C
Gloucester City Council,23UE,Taxi Marshalling Scheme,HL101,Taxi Marshals,5387,taxi marshalls 23/9 & 24/9/16,10/11/2016,425902,149.5,NET,Cuff Facilities Ltd,16436C
Gloucester City Council,23UE,Taxi Marshalling Scheme,HL101,Taxi Marshals,5387,taxi marshalls 26/8 & 27/8/16,10/11/2016,425898,172.5,NET,Cuff Facilities Ltd,16436C
Gloucester City Council,23UE,Taxi Marshalling Scheme,HL101,Taxi Marshals,5387,taxi marshalls 29 & 30/7/16,10/11/2016,425897,172.5,NET,Cuff Facilities Ltd,16436C
Gloucester City Council,23UE,Taxi Marshalling Scheme,HL101,Taxi Marshals,5387,taxi marshalls 2/9 & 3/9/16,10/11/2016,425905,172.5,NET,Cuff Facilities Ltd,16436C
Gloucester City Council,23UE,Taxi Marshalling Scheme,HL101,Taxi Marshals,5387,taxi marshalls 6/8/16,10/11/2016,425901,92,NET,Cuff Facilities Ltd,16436C
Gloucester City Council,23UE,Taxi Marshalling Scheme,HL101,Taxi Marshals,5387,taxi marshalls 9/9 & 10/9/16,10/11/2016,425904,172.5,NET,Cuff Facilities Ltd,16436C
Gloucester City Council,23UE,Business Transformation & Tech,RT700,Computer Software <5000,5425,Focus renewal Nov16,11/11/2016,423767,785,NET,Ncc Services Ltd,03054V
Gloucester City Council,23UE,Business Transformation & Tech,RT700,Operational Equipment <5000,5012,touchscreens & thermal printers,11/11/2016,425753,13511,NET,Cunningham Cash Registers Limited,17217H
Gloucester City Council,23UE,Cemeteries,HC300,Purch Vehicles/M. Plant <5000,4000,Beacon- Magnetic Base,11/11/2016,425826,63.32,NET,T H White Ltd,58324X
Gloucester City Council,23UE,City Museum Catering,LM202,Catering Provisions -Food,5110,milk,11/11/2016,425778,7.14,NET,Total Produce Gloucester,12645E
Gloucester City Council,23UE,"Cricket,3 Choirs,Cathedral",LA612,Advertising And Publicity,5702,Job Advert Oct - Nov 16,11/11/2016,425780,40,NET,Glosjobs Limited,16238J
Gloucester City Council,23UE,REDACTED,REDACTED,REDACTED,REDACTED,REDACTED,11/11/2016,REDACTED,450,NET,REDACTED,REDACTED
Gloucester City Council,23UE,Off Street Car Parks,PP110,General Repair/Maint Buildings,3000,Various Repairs,11/11/2016,425773,600,NET,Roadmark Ltd,37743T
Gloucester City Council,23UE,Rehousing,CH111,Fees For Services Received,5350,Medical Report,11/11/2016,425261,20.5,NET,Saintbridge Surgery,58374F
Gloucester City Council,23UE,Retail Market - Landlord,HM300,Operational Equipment <5000,5012,FOR LET SIGNAGE,11/11/2016,425908,120,NET,Alpha Colour Printers Ltd,00945B
Gloucester City Council,23UE,Solace Project,FP843,Other Minor Supplies Services,5590,ASB TRAINING,11/11/2016,425948,3400,NET,Asb Operations Ltd,17263A
Gloucester City Council,23UE,The Arbor,HC501,Catering Provisions -Food,5110,bread,11/11/2016,425754,9.92,NET,Total Produce Gloucester,12645E
Gloucester City Council,23UE,The Arbor,HC501,Catering Provisions -Food,5110,food,11/11/2016,425755,62.26,NET,Total Produce Gloucester,12645E
Gloucester City Council,23UE,The Arbor,HC501,Catering Provisions -Food,5110,food,11/11/2016,425756,22.02,NET,Total Produce Gloucester,12645E
Gloucester City Council,23UE,The Arbor,HC501,Catering Provisions -Food,5110,food,11/11/2016,425777,29.14,NET,Total Produce Gloucester,12645E
Gloucester City Council,23UE,Blackfriars,LA609,Hire Of Equipment,5020,White Tablecloths,14/11/2016,425397,89.6,NET,Gloucester Event Hire,56935D
Gloucester City Council,23UE,Client Revs & Bens Contract,RT240,Bailiffs Fees,5368,VAT due on statutory fees,14/11/2016,425740,0,NET,Bristow & Sutor,05450M
Gloucester City Council,23UE,Client Revs & Bens Contract,RT240,Bailiffs Fees,5368,VAT on fees collected,14/11/2016,425788,0,NET,Phoenix Commercial Collections Ltd,13435J
Gloucester City Council,23UE,Crematorium,HC200,Memorial Plaques,5053,Plaques,14/11/2016,425742,609,NET,Arkell & Hurcombe,59812T
Gloucester City Council,23UE,Crematorium,HC200,Repair/Maint Of Fixed Plant,3006,Various Items,14/11/2016,425824,1689.96,NET,Facultatieve Technologies Ltd,51210H
Gloucester City Council,23UE,Docks Complex - Services,RB100,Catering Provisions -Food,5110,Food,14/11/2016,425278,81.7,NET,Janes Pantry,24500W
Gloucester City Council,23UE,Docks Complex - Services,RB100,Smoke Vents,3060,Callout Charge 07/06/2016,14/11/2016,420552,278,NET,Brakel Airvent Ltd,51073T
Gloucester City Council,23UE,Gloucester Guildhall,LA100,Licences,9301,Business Radio,14/11/2016,425795,600,NET,Ofcom,02769C
Gloucester City Council,23UE,Grants To Voluntary Sector,FG100,Grants,7100C,Community Grant,14/11/2016,425961,2000,NET,Abbeymead Rovers Football Club,17255Z
Gloucester City Council,23UE,Grants To Voluntary Sector,FG100,Members Allocation Fund,7100F,Members Allocation- Pam Tracey,14/11/2016,425964,300,NET,The Gloucester Charities Trust,17242J
Gloucester City Council,23UE,Grants To Voluntary Sector,FG100,Members Allocation Fund,7100F,Members Allocation- Youth Leisure,14/11/2016,425963,1000,NET,Increase The Peace Project,08667D
Gloucester City Council,23UE,Guildhall Bar And Caf�,LA210,Catering Provisions -Food,5110,food,14/11/2016,424943,68.1,NET,Janes Pantry,24500W
Gloucester City Council,23UE,Guildhall Bar And Caf�,LA210,Catering Provisions -Food,5110,Food w/e 30/10/2016,14/11/2016,425815,55.4,NET,Janes Pantry,24500W
Gloucester City Council,23UE,Homelessness,CH120,Fees For Services Received,5350,Monthly,14/11/2016,425821,64.28,NET,Orbis Protect Limited*,56370J
Gloucester City Council,23UE,Investment Property,RB500,General Repair/Maint Buildings,3000,Excavators JCB,14/11/2016,425136,232,NET,Ken Pink Plant Hire Ltd,56884V
Gloucester City Council,23UE,National Express,LT105,Materials For Sale,5080,tickets sold on commission,14/11/2016,425402,6,NET,National Express Ltd,31455K
Gloucester City Council,23UE,National Express,LT105,Materials For Sale,5080,Tickets October 2016,14/11/2016,425811,10059.7,NET,National Express Ltd,31455K
Gloucester City Council,23UE,National Express,LT105,Sale Of Goods And Services,9230,Incorrect Commission Rate,14/11/2016,425401,614.22,NET,National Express Ltd,31455K
Gloucester City Council,23UE,National Express,LT105,Sale Of Goods And Services,9230,Tickets October 2016,14/11/2016,425811,-499.01,NET,National Express Ltd,31455K
Gloucester City Council,23UE,Nms Contract,HI102,Contracted Services,6970,pension recharge OCT16,14/11/2016,425913,9769.53,NET,Enterprise (Aol) Ltd,06695G
Gloucester City Council,23UE,Off Street Car Parks,PP110,Fees For Services Received,5350,November 2016,14/11/2016,425741,675.48,NET,Parkeon Ltd,03238G
Gloucester City Council,23UE,Off Street Car Parks,PP110,General Repair/Maint Buildings,3000,Longsmith Street Car Park,14/11/2016,425825,3350,NET,J M Grail (General Engineering) Ltd,03204A
Gloucester City Council,23UE,The Arbor,HC501,Catering Provisions -Food,5110,food,14/11/2016,425757,79.77,NET,Total Produce Gloucester,12645E
Gloucester City Council,23UE,The Arbor,HC501,Catering Provisions -Food,5110,Food w/e 30/10/2016,14/11/2016,425814,84.81,NET,Janes Pantry,24500W
Gloucester City Council,23UE,Townscape Heritage Initiative,LY145,Contract Payments,0020,Trier Way paving - THI grant,14/11/2016,425965,4000,CAP,Markey Construction Limited,17267S
Gloucester City Council,23UE,Allotments,HI104,Water Supply,3400,consumption savings JUNE 2016,15/11/2016,425225,240.94,NET,Advanced Demand Side Management Ltd,16229K
Gloucester City Council,23UE,Bus Station,RB400,Water Supply,3400,consumption savings JUNE 2016,15/11/2016,425225,37.73,NET,Advanced Demand Side Management Ltd,16229K
Gloucester City Council,23UE,City Museum,RY153,Contract Payments,0020,cdm fees Eastgate car park,15/11/2016,424792,637.5,CAP,Goddard Consulting Llp,10598G
Gloucester City Council,23UE,City Museum And Art Gallery,LM200,Water Supply,3400,consumption savings JUNE 2016,15/11/2016,425225,4.86,NET,Advanced Demand Side Management Ltd,16229K
Gloucester City Council,23UE,Cleansing Services Admin,HI100,Additional Non-Tender Items,6973,self lock card tags,15/11/2016,424926,379,NET,Eurolabel,10252Z
Gloucester City Council,23UE,Contaminated Land,HE301,Fees For Services Received,5350,contaminated land work Aug16,15/11/2016,426008,2452.8,NET,Bromsgrove District Council,15037G
Gloucester City Council,23UE,Council Streetcare Team,HI101,Water Supply,3400,consumption savings JUNE 2016,15/11/2016,425225,10.5,NET,Advanced Demand Side Management Ltd,16229K
Gloucester City Council,23UE,Council Streetcare Team,HI101,Water Supply,3400,Tariff Savings October 2016,15/11/2016,425738,87.92,NET,Advanced Demand Side Management Ltd,16229K
Gloucester City Council,23UE,Countryside Unit,LP201,Water Supply,3400,consumption savings JUNE 2016,15/11/2016,425225,12.41,NET,Advanced Demand Side Management Ltd,16229K
Gloucester City Council,23UE,Crematorium,HC200,"Seeds, Trees, Plants, Shrubs",3028,plants,15/11/2016,426003,357,NET,C Bailey,04060K
Gloucester City Council,23UE,Elmbridge Openspace Improv,LY164,Contract Payments,0020,play area equipment,15/11/2016,425771,7650,CAP,Proludic Ltd,03576G
Gloucester City Council,23UE,Financial Services,RT200,Basic Pay - Temporary Staff,2751,temporary staff w/e 14/10/16,15/11/2016,426010,628.49,NET,Hays Specialist Recruitment Ltd,55516P
Gloucester City Council,23UE,Financial Services,RT200,Consultants Fees,5349,consultancy expenses 12/10/16,15/11/2016,425998,113,NET,Civica Uk Ltd,10841X
Gloucester City Council,23UE,Flex Replacement,LY160,It Hardware,0042,Flex upgrade kit,15/11/2016,424773,1273.5,CAP,Cunningham Cash Registers Limited,17217H
Gloucester City Council,23UE,Flooding And Drainage,HE306,Maint Of Grounds - General,3030,Horsbere brook clearance works,15/11/2016,425783,270,NET,Rdb Safety Boat Ltd,13507J
Gloucester City Council,23UE,Folk Museum,LM210,Water Supply,3400,consumption savings JUNE 2016,15/11/2016,425225,3.9,NET,Advanced Demand Side Management Ltd,16229K
Gloucester City Council,23UE,Gloucester Guildhall,LA100,Cleaning Materials,3600,Guildhall JUL-SEP16,15/11/2016,424268,148.2,NET,Ocs Group Uk Limited T/A Cannon,06506A
Gloucester City Council,23UE,Gloucester Guildhall,LA100,Water Supply,3400,consumption savings JUNE 2016,15/11/2016,425225,3.32,NET,Advanced Demand Side Management Ltd,16229K
Gloucester City Council,23UE,Grants To Voluntary Sector,FG100,Abcd Grants,7100A,ABCD - YOUR GLOUCESTER GRANT 16/17,15/11/2016,426017,300,NET,Andrew Thorn,17274V
Gloucester City Council,23UE,Grants To Voluntary Sector,FG100,Members Allocation Fund,7100F,members grant 2016/17 Cllr Morgan,15/11/2016,426013,250,NET,St.Georges Day Centre,17272Z
Gloucester City Council,23UE,Grants To Voluntary Sector,FG100,Members Allocation Fund,7100F,members grant 2016/17 Cllr Morgan,15/11/2016,426015,250,NET,REDACTED,REDACTED
Gloucester City Council,23UE,Grants To Voluntary Sector,FG100,Members Allocation Fund,7100F,members grant 2016/17 Cllr Toleman,15/11/2016,426016,189.99,NET,Chapter Of Gloucester Cathedral,17271B
Gloucester City Council,23UE,Grants To Voluntary Sector,FG100,Members Allocation Fund,7100F,members grant 2016/17 Cllr Watkins,15/11/2016,426014,250,NET,Kingsway And Quedgeley Arts And Craft,17273X
Gloucester City Council,23UE,Guildhall Bar And Caf�,LA210,Catering Provisions -Food,5110,milk,15/11/2016,424610,4.76,NET,Total Produce Gloucester,12645E
Gloucester City Council,23UE,Guildhall Bar And Caf�,LA210,Catering Provisions -Food,5110,milk,15/11/2016,424924,4.76,NET,Total Produce Gloucester,12645E
Gloucester City Council,23UE,Guildhall Bar And Caf�,LA210,Catering Provisions -Liquor,5111,drinks for resale,15/11/2016,426001,928.32,NET,Cellar Supplies Cheltenham Ltd,01563L
Gloucester City Council,23UE,Guildhall Bar And Caf�,LA210,Catering Provisions -Liquor,5111,SUREMIX & SUREGAS,15/11/2016,425994,40.52,NET,Boc Ltd,59172L
Gloucester City Council,23UE,Guildhall Events,LA200,Artists Fees,5355,fundraising for artistic programme,15/11/2016,425997,900,NET,Asian Arts Agency,17096V
Gloucester City Council,23UE,REDACTED,REDACTED,REDACTED,REDACTED,REDACTED,15/11/2016,REDACTED,650,NET,REDACTED,REDACTED
Gloucester City Council,23UE,REDACTED,REDACTED,REDACTED,REDACTED,REDACTED,15/11/2016,REDACTED,0,NET,REDACTED,REDACTED
Gloucester City Council,23UE,Guildhall Events,LA200,Fees For Services Received,5350,Glen Matlock lighting tech,15/11/2016,426000,150,NET,Connect Electrical Contracting,12405D
Gloucester City Council,23UE,Guildhall Events,LA200,Fees For Services Received,5350,Lighting Technician Sept/Oct events,15/11/2016,425999,450,NET,Connect Electrical Contracting,12405D
Gloucester City Council,23UE,REDACTED,REDACTED,REDACTED,REDACTED,REDACTED,15/11/2016,REDACTED,150,NET,REDACTED,REDACTED
Gloucester City Council,23UE,Investment Property,RB500,Gas Fittings Serv/Repair,3052,MTC claims OCT16,15/11/2016,425987,10460.18,NET,Rf Gardiner Limited,12299B
Gloucester City Council,23UE,Investment Property,RB500,General Repair/Maint Buildings,3000,OCT16 building electrical works,15/11/2016,425996,22012.6,NET,Rf Gardiner Limited,12299B
Gloucester City Council,23UE,Investment Property,RB500,Water Supply,3400,consumption savings JUNE 2016,15/11/2016,425225,52.42,NET,Advanced Demand Side Management Ltd,16229K
Gloucester City Council,23UE,Investment Property,RB500,Water Supply,3400,Tariff Savings October 2016,15/11/2016,425738,13.57,NET,Advanced Demand Side Management Ltd,16229K
Gloucester City Council,23UE,Off Street Car Parks,PP110,Water Supply,3400,Tariff Savings October 2016,15/11/2016,425738,13.57,NET,Advanced Demand Side Management Ltd,16229K
Gloucester City Council,23UE,Planning Policy & Heritage,PT300,Fees For Services Received,5350,project services fees re EiP,15/11/2016,426093,5225,NET,Carter Jonas Llp,16157K
Gloucester City Council,23UE,Pollution Control,HE300,Fees For Services Received,5350,AUG16 pollution control work,15/11/2016,425991,2316.63,NET,Bromsgrove District Council,15037G
Gloucester City Council,23UE,Pollution Control,HE300,Fees For Services Received,5350,Fleece,15/11/2016,423363,20.79,NET,Safpro Industrial Supply Co,39190W
Gloucester City Council,23UE,Pollution Control,HE300,Fees For Services Received,5350,Transcriptin services,15/11/2016,426002,125,NET,Bromsgrove District Council,15037G
Gloucester City Council,23UE,Public Conveniences (Client),HI400,Water Supply,3400,consumption savings JUNE 2016,15/11/2016,425225,10.74,NET,Advanced Demand Side Management Ltd,16229K
Gloucester City Council,23UE,Public Conveniences (Client),HI400,Water Supply,3400,Tariff Savings October 2016,15/11/2016,425738,81.91,NET,Advanced Demand Side Management Ltd,16229K
Gloucester City Council,23UE,Retail Market - Landlord,HM300,Trade Refuse Collection,3630,OCT16 food waste bins,15/11/2016,425992,120,NET,B & S Pointon Ltd,06253G
Gloucester City Council,23UE,The Arbor,HC501,Catering Provisions -Food,5110,food,15/11/2016,426004,222.69,NET,Bidvest Foodservice (3663),55585U
Gloucester City Council,23UE,The Arbor,HC501,Catering Provisions -Food,5110,food,15/11/2016,426005,248.43,NET,Bidvest Foodservice (3663),55585U
Gloucester City Council,23UE,The Arbor,HC501,Catering Provisions -Food,5110,food,15/11/2016,426006,325.18,NET,Bidvest Foodservice (3663),55585U
Gloucester City Council,23UE,The Arbor,HC501,Catering Provisions -Liquor,5111,drinks for resale,15/11/2016,425993,258.78,NET,Cellar Supplies Cheltenham Ltd,01563L
Gloucester City Council,23UE,Tic Theatre Ticket Sales,LT107,Materials For Sale,5080,Festival of Remembrance 2016 tickets,15/11/2016,426011,170,NET,Royal British Legion Glos City Branch,05043F
Gloucester City Council,23UE,Tic Theatre Ticket Sales,LT107,Materials For Sale,5080,Fierworks 2016 ticket sales,15/11/2016,426012,4757,NET,Gloucester Round Table,53781L
Gloucester City Council,23UE,Tic Theatre Ticket Sales,LT107,Sale Of Goods And Services,9230,Festival of Remembrance 2016 tickets,15/11/2016,426011,-7.08,NET,Royal British Legion Glos City Branch,05043F
Gloucester City Council,23UE,Tic Theatre Ticket Sales,LT107,Sale Of Goods And Services,9230,Fierworks 2016 ticket sales,15/11/2016,426012,-198.21,NET,Gloucester Round Table,53781L
Gloucester City Council,23UE,Townscape Heritage Initiative,LY145,Contract Payments,0020,THI phase 4 course St Mary De Crypt,15/11/2016,426009,5760,CAP,Bourne Masonry,15013X
Gloucester City Council,23UE,Vehicles,RS140,Fuel,4012,vehicle fuel,15/11/2016,425986,51.33,NET,Allstar Business Solutions Ltd (Arval),06594A
Gloucester City Council,23UE,27-29 Commercial Road,RB542,Consultants Fees,5349,27-29 Commercial Road,16/11/2016,426024,3650,NET,Bruton Knowles,57534T
Gloucester City Council,23UE,Business Transformation & Tech,RT700,Internet Service Provider Fees,5429,acct 510738402,16/11/2016,422628,33,NET,Virgin Media Payments Ltd,09376J
Gloucester City Council,23UE,Business Transformation & Tech,RT700,Internet Service Provider Fees,5429,Cable Modem Oct-Nov16,16/11/2016,424966,33,NET,Virgin Media Payments Ltd,09376J
Gloucester City Council,23UE,Business Transformation & Tech,RT700,Internet Service Provider Fees,5429,Cable modem Sep-Oct16,16/11/2016,423864,33,NET,Virgin Media Payments Ltd,09376J
Gloucester City Council,23UE,Business Transformation & Tech,RT700,Internet Service Provider Fees,5429,CALL CHARGES JUL-AUG16,16/11/2016,421487,33,NET,Virgin Media Payments Ltd,09376J
Gloucester City Council,23UE,Cemeteries,HC300,Maint Of Grounds - General,3030,Cedar Tree- Tredworth Crematorium,16/11/2016,426019,270,NET,Jpu Services Ltd,11056K
Gloucester City Council,23UE,Cemeteries,HC300,Operational Materials,5070,cleaning materials,16/11/2016,423871,46.92,NET,Acs Business Supplies Ltd,15791M
Gloucester City Council,23UE,Cems/Crems Admin,HC100,Security Services Fees,5351,Services October 2016,16/11/2016,426151,14.11,NET,G4s Cash Solutions (Uk) Ltd,04290V
Gloucester City Council,23UE,City Museum And Art Gallery,LM200,Publications For Sale,5064,Various Items,16/11/2016,425132,142.2,NET,Holy Mackerel (Uk)Ltd,15000G
Gloucester City Council,23UE,City Museum Catering,LM202,Catering Provisions -Food,5110,Food,16/11/2016,425590,168.36,NET,Woodward Foodservice,10714F
Gloucester City Council,23UE,Civica Admin Charges,RT105,Postages,5400,Post 10/10 - 21/10 2016,16/11/2016,425592,1089.95,NET,Royal Mail S.Wales & South West,35830S
Gloucester City Council,23UE,REDACTED,REDACTED,REDACTED,REDACTED,REDACTED,16/11/2016,REDACTED,225,NET,REDACTED,REDACTED
Gloucester City Council,23UE,Crematorium,HC200,Cleaning Materials,3600,cleaning materials,16/11/2016,423871,117.36,NET,Acs Business Supplies Ltd,15791M
Gloucester City Council,23UE,"Cricket,3 Choirs,Cathedral",LA612,Advertising And Publicity,5702,Guardian Desktop Edition - recruiter services,16/11/2016,425782,900,NET,Guardian News And Media,17261E
Gloucester City Council,23UE,Docks Complex - Services,RB100,Cleaning Materials,3600,cleaning materials,16/11/2016,423871,247.72,NET,Acs Business Supplies Ltd,15791M
Gloucester City Council,23UE,Docks Complex - Services,RB100,Security Services Fees,5351,Services October 2016,16/11/2016,426151,3.53,NET,G4s Cash Solutions (Uk) Ltd,04290V
Gloucester City Council,23UE,Folk Museum,LM210,Publications For Sale,5064,Harry Potter Mugs,16/11/2016,425556,299.88,NET,Half Moon Bay Ltd,08240F
Gloucester City Council,23UE,Folk Museum,LM210,Publications For Sale,5064,Various Items,16/11/2016,425260,499.32,NET,Half Moon Bay Ltd,08240F
Gloucester City Council,23UE,Gloucester Guildhall,LA100,Fees For Services Received,5350,refurbishment of chairs,16/11/2016,426196,1280,NET,The Furniture Recycling Project,05542F
Gloucester City Council,23UE,Guildhall Bar And Caf�,LA210,Catering Provisions -Food,5110,Food,16/11/2016,426142,92.59,NET,Woodward Foodservice,10714F
Gloucester City Council,23UE,Guildhall Bar And Caf�,LA210,Catering Provisions -Food,5110,milk,16/11/2016,426080,4.76,NET,Total Produce Gloucester,12645E
Gloucester City Council,23UE,Guildhall Bar And Caf�,LA210,Catering Provisions -Food,5110,milk,16/11/2016,426081,7.14,NET,Total Produce Gloucester,12645E
Gloucester City Council,23UE,Guildhall Bar And Caf�,LA210,Catering Provisions -Food,5110,milk,16/11/2016,426082,4.76,NET,Total Produce Gloucester,12645E
Gloucester City Council,23UE,Guildhall Bar And Caf�,LA210,Catering Provisions -Food,5110,milk,16/11/2016,426083,4.76,NET,Total Produce Gloucester,12645E
Gloucester City Council,23UE,Guildhall Bar And Caf�,LA210,Catering Provisions -Food,5110,milk,16/11/2016,426084,4.76,NET,Total Produce Gloucester,12645E
Gloucester City Council,23UE,Guildhall Bar And Caf�,LA210,Catering Provisions -Food,5110,milk,16/11/2016,426085,4.76,NET,Total Produce Gloucester,12645E
Gloucester City Council,23UE,Guildhall Bar And Caf�,LA210,Catering Provisions -Food,5110,milk,16/11/2016,426086,4.76,NET,Total Produce Gloucester,12645E
Gloucester City Council,23UE,Guildhall Bar And Caf�,LA210,Catering Provisions -Food,5110,milk,16/11/2016,426087,4.76,NET,Total Produce Gloucester,12645E
Gloucester City Council,23UE,Guildhall Bar And Caf�,LA210,Catering Provisions -Food,5110,milk,16/11/2016,426088,4.76,NET,Total Produce Gloucester,12645E
Gloucester City Council,23UE,Guildhall Bar And Caf�,LA210,Catering Provisions -Food,5110,milk,16/11/2016,426089,4.76,NET,Total Produce Gloucester,12645E
Gloucester City Council,23UE,Guildhall Bar And Caf�,LA210,Catering Provisions -Food,5110,milk,16/11/2016,426191,4.76,NET,Total Produce Gloucester,12645E
Gloucester City Council,23UE,Guildhall Bar And Caf�,LA210,Catering Provisions -Food,5110,milk,16/11/2016,426192,4.76,NET,Total Produce Gloucester,12645E
Gloucester City Council,23UE,Guildhall Bar And Caf�,LA210,Catering Provisions -Food,5110,milk,16/11/2016,426193,4.76,NET,Total Produce Gloucester,12645E
Gloucester City Council,23UE,Guildhall Bar And Caf�,LA210,Catering Provisions -Food,5110,milk,16/11/2016,426194,4.76,NET,Total Produce Gloucester,12645E
Gloucester City Council,23UE,Guildhall Bar And Caf�,LA210,Catering Provisions -Liquor,5111,Food,16/11/2016,426141,85.37,NET,Woodward Foodservice,10714F
Gloucester City Council,23UE,REDACTED,REDACTED,REDACTED,REDACTED,REDACTED,16/11/2016,REDACTED,1250,NET,REDACTED,REDACTED
Gloucester City Council,23UE,REDACTED,REDACTED,REDACTED,REDACTED,REDACTED,16/11/2016,REDACTED,750,NET,REDACTED,REDACTED
Gloucester City Council,23UE,REDACTED,REDACTED,REDACTED,REDACTED,REDACTED,16/11/2016,REDACTED,368.2,NET,REDACTED,REDACTED
Gloucester City Council,23UE,REDACTED,REDACTED,REDACTED,REDACTED,REDACTED,16/11/2016,REDACTED,400,NET,REDACTED,REDACTED
Gloucester City Council,23UE,Pollution Control,HE300,Fees For Services Received,5350,Uniforms,16/11/2016,423936,61.83,NET,Safpro Industrial Supply Co,39190W
Gloucester City Council,23UE,Registration Of Electors,RS400,Postages,5400,Business Mail,16/11/2016,426135,3101.23,NET,Royal Mail S.Wales & South West,35830S
Gloucester City Council,23UE,Registration Of Electors,RS400,Postages,5400,Response Plus Service,16/11/2016,426136,30,NET,Royal Mail S.Wales & South West,35830S
Gloucester City Council,23UE,Retail Market - Landlord,HM300,Cleaning / Domestic Equipment,5011,cleaning materials,16/11/2016,423871,215.18,NET,Acs Business Supplies Ltd,15791M
Gloucester City Council,23UE,Retail Market - Landlord,HM300,Cleaning / Domestic Equipment,5011,Credited,16/11/2016,426198,57.58,NET,Acs Business Supplies Ltd,15791M
Gloucester City Council,23UE,Townscape Heritage Initiative,LY145,Contract Payments,0020,St Mary De Crypt level survey,16/11/2016,426195,280,CAP,Anthony Brookes Surveys Limited,16203E
Gloucester City Council,23UE,Business Transformation & Tech,RT700,Mobile Phones,5409,Phone & COntract,17/11/2016,426040,25.69,NET,O2 Uk,16206Y
Gloucester City Council,23UE,City Museum Catering,LM202,Catering Provisions -Food,5110,machine rental FEB14,17/11/2016,425317,135,NET,La Spaziale Uk Ltd,11823P
Gloucester City Council,23UE,City Museum Catering,LM202,Catering Provisions -Food,5110,milk,17/11/2016,425779,7.14,NET,Total Produce Gloucester,12645E
Gloucester City Council,23UE,Civica Admin Charges,RT105,Postages,5400,Post 24/10 - 04/11 2016,17/11/2016,426138,1004.11,NET,Royal Mail S.Wales & South West,35830S
Gloucester City Council,23UE,Contact Centre,RB300,Fees For Services Received,5350,Staff Background Screening,17/11/2016,426143,31,NET,Gloucestershire County Council,18650D
Gloucester City Council,23UE,"Cricket,3 Choirs,Cathedral",LA612,Advertising And Publicity,5702,culture board director - recruitment ads,17/11/2016,425990,595,NET,Arts Intelligence Ltd,14190G
Gloucester City Council,23UE,Development Management,PT200,Microfilming / Cd-Rom Storage,5330,Storage October 2016,17/11/2016,426050,22,NET,Transmedia Technology Ltd,08635T
Gloucester City Council,23UE,General Works Fund,RY203,Consultants Fees,0030,"Survey, Design and CAD Work",17/11/2016,426139,532,CAP,Graham Parker Environmental Design Solutions,16390B
Gloucester City Council,23UE,Gloucester Guildhall,LA100,Fees For Services Received,5350,Credited,17/11/2016,426224,656.53,NET,Workware Express Ltd,17189L
Gloucester City Council,23UE,Gloucester Guildhall,LA100,Fees For Services Received,5350,workshirts/polo shirts,17/11/2016,425791,791.19,NET,Workware Express Ltd,17189L
Gloucester City Council,23UE,Guildhall Bar And Caf�,LA210,Fees For Services Received,5350,Temporary staff w/e 30/10/16,17/11/2016,426048,106.69,NET,Re People,17253D
Gloucester City Council,23UE,Guildhall Cinema,LA202,Maintenance Of Equipment,5030,SURROUND SPEAKERS,17/11/2016,425652,1375,NET,Arts Alliance Media Ltd,14477G
Gloucester City Council,23UE,REDACTED,REDACTED,REDACTED,REDACTED,REDACTED,17/11/2016,REDACTED,170,NET,REDACTED,REDACTED
Gloucester City Council,23UE,Hackney Carriages,HL100,Other Minor Supplies Services,5590,Licence Plate Set,17/11/2016,426042,512.9,NET,Mogo Uk,56615B
Gloucester City Council,23UE,Head Of Regeneration & Eco Dev,GO102,Advertising And Publicity,5702,Campaign Licence,17/11/2016,426037,2000,NET,Gfirst Lep Cic,17186T
Gloucester City Council,23UE,REDACTED,REDACTED,REDACTED,REDACTED,REDACTED,17/11/2016,REDACTED,1573.28,NET,REDACTED,REDACTED
Gloucester City Council,23UE,Homelessness,CH120,Fees For Services Received,5350,Medical Reports,17/11/2016,426031,275,NET,Now Medical,03468L
Gloucester City Council,23UE,Homelessness,CH120,Fees For Services Received,5350,OOH,17/11/2016,426156,15,NET,Orbis Protect Limited*,56370J
Gloucester City Council,23UE,Homelessness,CH120,Removal And Storage Fees,5513,storage fees - Aug 16,17/11/2016,426026,450.32,NET,Advanced Removals & Storage Ltd,57142R
Gloucester City Council,23UE,Homelessness,CH120,Removal And Storage Fees,5513,storage fees - October 2016,17/11/2016,426043,140.79,NET,Advanced Removals & Storage Ltd,57142R
Gloucester City Council,23UE,Homelessness,CH120,Removal And Storage Fees,5513,storage fees,17/11/2016,426027,371.25,NET,Advanced Removals & Storage Ltd,57142R
Gloucester City Council,23UE,REDACTED,REDACTED,REDACTED,REDACTED,REDACTED,17/11/2016,REDACTED,161.86,NET,REDACTED,REDACTED
Gloucester City Council,23UE,REDACTED,REDACTED,REDACTED,REDACTED,REDACTED,17/11/2016,REDACTED,21,NET,REDACTED,REDACTED
Gloucester City Council,23UE,Pollution Control,HE300,Fees For Services Received,5350,Various Items,17/11/2016,426028,1365,NET,Campbell Associates,58924P
Gloucester City Council,23UE,Rehousing,CH111,Fees For Services Received,5350,Medical Report,17/11/2016,426044,20.5,NET,Kingsholm Surgery,11948S
Gloucester City Council,23UE,Statutory Testing,RS310,Legionella,3018,Samples,17/11/2016,426035,110,NET,Kingfisher Environmental Services Ltd,04738V
Gloucester City Council,23UE,The Arbor,HC501,Catering Provisions -Food,5110,Food,17/11/2016,426038,47.22,NET,Total Produce Gloucester,12645E
Gloucester City Council,23UE,The Arbor,HC501,Catering Provisions -Food,5110,Food,17/11/2016,426039,265.33,NET,Bidvest Foodservice (3663),55585U
Gloucester City Council,23UE,Theatre Tokens,LT106,Materials For Sale,5080,Ticket Sales October 2016,17/11/2016,426140,370,NET,Society Of London Theatre,05656Z
Gloucester City Council,23UE,Theatre Tokens,LT106,Sale Of Goods And Services,9230,Ticket Sales October 2016,17/11/2016,426140,-18.5,NET,Society Of London Theatre,05656Z
Gloucester City Council,23UE,Tic Rovercard Sales,LT101,Materials For Sale,5080,Ticket Sales Sep - Oct 16,17/11/2016,426033,1860,NET,Stagecoach Services Ltd,56554W
Gloucester City Council,23UE,Tic Rovercard Sales,LT101,Sale Of Goods And Services,9230,Ticket Sales Sep - Oct 16,17/11/2016,426033,-155,NET,Stagecoach Services Ltd,56554W
Gloucester City Council,23UE,Tic Trading,LT110,Materials For Sale,5080,2017 Calendar,17/11/2016,426032,22.5,NET,Gloucester Civic Trust (St Michaels Tower),07484Z
Gloucester City Council,23UE,Tic Trading,LT110,Materials For Sale,5080,Various Items,17/11/2016,426034,272.81,NET,Norfolk China Ltd,12863S
Gloucester City Council,23UE,Townscape Heritage Initiative,LY145,Contract Payments,0020,Railings - St Mary De Crypt,17/11/2016,426051,17500,CAP,REDACTED,REDACTED
Gloucester City Council,23UE,Aspire Admin Charges,LC105,Contracted Services,6970,NOV16 management fees,18/11/2016,426074,38125.58,NET,Aspire Sports & Cultural Trust,08135V
Gloucester City Council,23UE,Cemeteries,HC300,Maint Of Grounds - General,3030,re cutting of brook old cemetary,18/11/2016,426123,250,NET,John Hall Funeral Directors,15801L
Gloucester City Council,23UE,Cemeteries,HC300,Operational Materials,5070,gallup biograde amenity 22066,18/11/2016,424209,173.25,NET,Rigby Taylor Ltd,37605G
Gloucester City Council,23UE,Cemeteries,HC300,Operational Materials,5070,re cutting brook in old cemetary,18/11/2016,426110,525,NET,John Hall Funeral Directors,15801L
Gloucester City Council,23UE,Civica It Contract,RT270,Contracted Services,6970,DEC16 ICT managed services,18/11/2016,425653,48061.14,NET,Civica Uk Ltd,10841X
Gloucester City Council,23UE,Contact Centre,RB300,Publications,5060,newspapers,18/11/2016,426075,290,NET,Ymk Supermarket,55281U
Gloucester City Council,23UE,Contact Centre,RB300,Security Services Fees,5351,16/17 Citysafe membership,18/11/2016,426076,365,NET,Gloucester City Safe,14709J
Gloucester City Council,23UE,Contact Centre,RB300,Stationery,5302,stationery,18/11/2016,426129,97.44,NET,Lyreco Uk Ltd,11746G
Gloucester City Council,23UE,Contact Centre,RB300,Stationery,5302,stationery,18/11/2016,426130,24.59,NET,Lyreco Uk Ltd,11746G
Gloucester City Council,23UE,Corporate Reporting /Financing,RC504,Audit Fees,5383,Q3 2016/17 audit,18/11/2016,426128,15862.5,NET,Kpmg,06498X
Gloucester City Council,23UE,Corporate Reporting /Financing,RC504,Audit Fees,5383,Q3 2016/17 grants certification,18/11/2016,426127,1760.75,NET,Kpmg,06498X
Gloucester City Council,23UE,Council Streetcare Team,HI101,Maint Of Grounds - General,3030,Saintbridge Pondfencing repairs,18/11/2016,426120,246,NET,Greenfields Garden Services Ltd,48130G
Gloucester City Council,23UE,Council Streetcare Team,HI101,Window Cleaning,3610,OCT16 viewing chamber windows,18/11/2016,426096,130,NET,Poles Apart Window Cleaning,11636R
Gloucester City Council,23UE,Crematorium,HC200,Memorial Plaques,5053,memorial,18/11/2016,426124,1396,NET,F J Cambridge & Co Ltd,48841N
Gloucester City Council,23UE,Crematorium,HC200,Operational Equipment <5000,5012,Bypass Secateurs,18/11/2016,426030,18.57,NET,Spaldings,48759Y
Gloucester City Council,23UE,Development Management,PT200,Advertising And Publicity,5702,Advertisement 03/11/2016,18/11/2016,426097,204.51,NET,Local World Ltd,08556P
Gloucester City Council,23UE,Development Management,PT200,Fees For Services Received,5350,Works,18/11/2016,426118,1200,NET,Parkwood Consultancy Services,17173C
Gloucester City Council,23UE,Financial Services,RT200,Basic Pay - Temporary Staff,2751,temporary staff w/e 06/11/2016,18/11/2016,426025,392.83,NET,Venn Group Ltd,04339P
Gloucester City Council,23UE,Flooding And Drainage,HE306,Other Minor Supplies Services,5590,Spraying Knotweed,18/11/2016,426100,45,NET,Greenfields Garden Services Ltd,48130G
Gloucester City Council,23UE,Folk Museum,LM210,Publications For Sale,5064,goods for resale,18/11/2016,426279,240,NET,REDACTED,REDACTED
Gloucester City Council,23UE,General Drainage Works,PY241,Contract Payments,0020,Minor Works Contract,18/11/2016,426021,164.45,CAP,Riba Enterprises,09988U
Gloucester City Council,23UE,General Drainage Works,PY241,Contract Payments,0020,Sudbrook flood protection Oct16,18/11/2016,426095,1500,CAP,Jba Consulting,15841Y
Gloucester City Council,23UE,Gloucester Guildhall,LA100,Mot Tests,4016,MOT Test,18/11/2016,426057,45,NET,123 Car & Commercial,07651E
Gloucester City Council,23UE,Guildhall Bar And Caf�,LA210,Catering Provisions -Food,5110,coffee,18/11/2016,426079,147.63,NET,Ethical Addictions Ltd,11654N
Gloucester City Council,23UE,Guildhall Bar And Caf�,LA210,Catering Provisions -Food,5110,food,18/11/2016,426090,116,NET,Woody'S Fruit & Veg,11798L
Gloucester City Council,23UE,Guildhall Bar And Caf�,LA210,Catering Provisions -Liquor,5111,drinks for resale,18/11/2016,426078,115.2,NET,Gloucester Brewery,13373F
Gloucester City Council,23UE,Guildhall Bar And Caf�,LA210,Fees For Services Received,5350,Temporary Staff,18/11/2016,426067,157.22,NET,Re People,17253D
Gloucester City Council,23UE,Guildhall Cinema,LA202,Hire Of Equipment,5020,film trnasport,18/11/2016,426053,219.59,NET,Nft Logistics Ltd,13505N
Gloucester City Council,23UE,REDACTED,REDACTED,REDACTED,REDACTED,REDACTED,18/11/2016,REDACTED,0,NET,REDACTED,REDACTED
Gloucester City Council,23UE,Hackney Carriages,HL100,Fees For Services Received,5350,DVLA checks,18/11/2016,426119,58,NET,Intelligent Data Systems (Uk) Ltd,11067G
Gloucester City Council,23UE,Head Of Regeneration & Eco Dev,GO102,Fees For Services Received,5350,professional services,18/11/2016,426121,5000,NET,Trowers & Hamlins Llp,51600P
Gloucester City Council,23UE,Homelessness,CH120,Removal And Storage Fees,5513,Storage October 2016,18/11/2016,426054,104.46,NET,Advanced Removals & Storage Ltd,57142R
Gloucester City Council,23UE,Homelessness,CH120,Removal And Storage Fees,5513,Storage October 2016,18/11/2016,426055,135,NET,Advanced Removals & Storage Ltd,57142R
Gloucester City Council,23UE,Homelessness Prevention,CH122,Fees For Services Received,5350,Lawtel Services,18/11/2016,426094,2882,NET,Thomson Reuters,43110M
Gloucester City Council,23UE,Homelessness Prevention,CH122,Grants To Advice Centres,7100,Core Funding,18/11/2016,426065,3500,NET,Gloucestershire Nightstop,56573S
Gloucester City Council,23UE,Investment Property,RB500,Consultants Fees,5349,lease restructure Kings Walk/Qtr,18/11/2016,426072,4800,NET,Gva Grimley,56359W
Gloucester City Council,23UE,Kings Quarter,RY146,Contract Payments,0020,re Great Western Road land,18/11/2016,426077,32000,CAP,Tewkesbury Borough Council,43800C
Gloucester City Council,23UE,Legal Services,RS200,Contracted Services,6970,One Legal Recharge,18/11/2016,426111,86982.63,NET,Tewkesbury Borough Council,43800C
Gloucester City Council,23UE,Meet & Greet,FP309,Advertising And Publicity,5702,August Issue,18/11/2016,423381,200,NET,Diversified Business Communications Uk Ltd,15016R
Gloucester City Council,23UE,REDACTED,REDACTED,REDACTED,REDACTED,REDACTED,18/11/2016,REDACTED,8,NET,REDACTED,REDACTED
Gloucester City Council,23UE,REDACTED,REDACTED,REDACTED,REDACTED,REDACTED,18/11/2016,REDACTED,6,NET,REDACTED,REDACTED
Gloucester City Council,23UE,REDACTED,REDACTED,REDACTED,REDACTED,REDACTED,18/11/2016,REDACTED,8,NET,REDACTED,REDACTED
Gloucester City Council,23UE,REDACTED,REDACTED,REDACTED,REDACTED,REDACTED,18/11/2016,REDACTED,18,NET,REDACTED,REDACTED
Gloucester City Council,23UE,Pollution Control,HE300,Fees For Services Received,5350,vehicle disposal,18/11/2016,426109,50,NET,Harry Buckland,16135W
Gloucester City Council,23UE,Pollution Control,HE300,Fees For Services Received,5350,V.W Bora Collection & Disposal Fee,18/11/2016,426046,80,NET,Harry Buckland,16135W
Gloucester City Council,23UE,Ranger Centre/Netheridge Wks,RY167,Contract Payments,0020,Various Items,18/11/2016,426022,78.55,CAP,Screwfix Direct,54672H
Gloucester City Council,23UE,Registration Of Electors,RS400,Fees For Services Received,5350,hire of temporary office for Gala Club,18/11/2016,426102,1059.1,NET,Portakabin Head Office,56116B
Gloucester City Council,23UE,Retail Market - Landlord,HM300,General Repair/Maint Buildings,3000,Investigate blocked drains,18/11/2016,426103,230,NET,Three Counties Drain Service,44033V
Gloucester City Council,23UE,The Arbor,HC501,Catering Provisions -Food,5110,food,18/11/2016,426114,18.45,NET,Total Produce Gloucester,12645E
Gloucester City Council,23UE,Treasury Management,VR110,Brokerage Fees,5951,1631859-00,18/11/2016,425792,2493.15,NET,Tradition (Uk) Ltd,59084J
Gloucester City Council,23UE,Treasury Management,VR110,Brokerage Fees,5951,Cash Deposits,18/11/2016,425798,2616.44,NET,Martin Brokers (Uk) Plc,51416J
Gloucester City Council,23UE,Vehicles,RS140,Fuel,4012,vehicle fuel,18/11/2016,426254,168.43,NET,Allstar Business Solutions Ltd (Arval),06594A
Gloucester City Council,23UE,Business Transformation & Tech,RT700,Computer Hardware <5000,5420,Various Items,21/11/2016,425555,409,NET,Dell Computers Corporation Ltd,55920C
Gloucester City Council,23UE,Business Transformation & Tech,RT700,Computer Software Maintenance,5427,GFI archiver,21/11/2016,424295,2394,NET,Pnltools Ltd,08345R
Gloucester City Council,23UE,City Museum And Art Gallery,LM200,Fees For Services Received,5350,Secret Gloucester,21/11/2016,417324,44.97,NET,Marston Book Services,56453D
Gloucester City Council,23UE,Client Revs & Bens Contract,RT240,Bailiffs Fees,5368,VAT due on statutory fees,21/11/2016,426036,0,NET,Bristow & Sutor,05450M
Gloucester City Council,23UE,Client Revs & Bens Contract,RT240,Bailiffs Fees,5368,VAT due on statutory fees,21/11/2016,426064,0,NET,Bristow & Sutor,05450M
Gloucester City Council,23UE,Corporate Reporting /Financing,RC504,Fees For Services Received,5350,Childcare Vouchers,21/11/2016,426099,46.57,NET,Wider Plan Ltd ( Formerly Kiddivouchers),07893B
Gloucester City Council,23UE,Crematorium,HC200,Clothing,5200,workwear,21/11/2016,426101,36.99,NET,Safpro Industrial Supply Co,39190W
Gloucester City Council,23UE,Financial Services,RT200,Basic Pay - Temporary Staff,2751,temporary staff w/e 30/10/16,21/11/2016,426098,706.1,NET,Venn Group Ltd,04339P
Gloucester City Council,23UE,Guildhall Bar And Caf�,LA210,Catering Provisions -Food,5110,Food w/e 06/11/2016,21/11/2016,426150,27.3,NET,Janes Pantry,24500W
Gloucester City Council,23UE,Rehousing,CH111,Publications,5060,Housing Law,21/11/2016,425400,58.5,NET,Marston Book Services,56453D
Gloucester City Council,23UE,Shopmobility,PE200,Maintenance Of Equipment,5030,Fit Innertubes to scooters,21/11/2016,425800,96,NET,Disabled Care & Mobility,12675V
Gloucester City Council,23UE,Southgate Moorings,RB537,Service Charges,3020,Docks Service Charge,21/11/2016,425574,3000,NET,Gloucester Quays Management Ltd,13497K
Gloucester City Council,23UE,Aspire Admin Charges,LC105,Security Services Fees,5351,Services December 2016,22/11/2016,426437,184.94,NET,G4s Cash Solutions (Uk) Ltd,04290V
Gloucester City Council,23UE,Business Transformation & Tech,RT700,Computer Hardware <5000,5420,Flatbed Scanner,22/11/2016,426434,1658,NET,Qual Technology,56512N
Gloucester City Council,23UE,REDACTED,REDACTED,REDACTED,REDACTED,REDACTED,22/11/2016,REDACTED,560,NET,REDACTED,REDACTED
Gloucester City Council,23UE,Cemeteries,HC300,Purch Vehicles/M. Plant <5000,4000,Various Items,22/11/2016,426412,53.89,NET,Garden Machinery Gloucester,55641K
Gloucester City Council,23UE,Cems/Crems Admin,HC100,Security Services Fees,5351,Services December 2016,22/11/2016,426437,105.42,NET,G4s Cash Solutions (Uk) Ltd,04290V
Gloucester City Council,23UE,City Museum And Art Gallery,LM200,Cleaning Materials,3600,Cleaning Supplies,22/11/2016,425812,23.06,NET,Acs Business Supplies Ltd,15791M
Gloucester City Council,23UE,City Museum And Art Gallery,LM200,Cleaning Materials,3600,Credited,22/11/2016,426199,28.49,NET,Acs Business Supplies Ltd,15791M
Gloucester City Council,23UE,City Museum And Art Gallery,LM200,Operational Equipment <5000,5012,Cleaning Supplies,22/11/2016,425812,48.58,NET,Acs Business Supplies Ltd,15791M
Gloucester City Council,23UE,City Museum And Art Gallery,LM200,Security Services Fees,5351,Services December 2016,22/11/2016,426437,92.47,NET,G4s Cash Solutions (Uk) Ltd,04290V
Gloucester City Council,23UE,City Museum Catering,LM202,Cleaning Materials,3600,Cleaning Supplies,22/11/2016,425812,13.74,NET,Acs Business Supplies Ltd,15791M
Gloucester City Council,23UE,City Museum Catering,LM202,Operational Equipment <5000,5012,Cleaning Supplies,22/11/2016,425812,36.69,NET,Acs Business Supplies Ltd,15791M
Gloucester City Council,23UE,Civic Admin And Hospitality,RC210,Hospitality,5122,Drinks,22/11/2016,426393,343.5,NET,Catercater Ltd,08620G
Gloucester City Council,23UE,Civic Admin And Hospitality,RC210,Hospitality,5122,Duke of Gloucester Visit - 20/09/16,22/11/2016,426347,226.7,NET,Pixel Photography Ltd,14990N
Gloucester City Council,23UE,Client Revs & Bens Contract,RT240,Bailiffs Fees,5368,VAT on statutory fees,22/11/2016,426355,0,NET,Bristow & Sutor,05450M
Gloucester City Council,23UE,Contact Centre,RB300,Other Minor Supplies Services,5590,Out of hours monitoring Oct 16,22/11/2016,426385,295.8,NET,Worcestershire Telecare,16419C
Gloucester City Council,23UE,Contact Centre,RB300,Stationery,5302,Paper,22/11/2016,426359,469,NET,Premier Paper Group Ltd,09166Y
Gloucester City Council,23UE,Countryside Unit,LP201,Memorial Seats,5056,Various Items,22/11/2016,426388,481,NET,Streetmaster Products,00534D
Gloucester City Council,23UE,Countryside Unit,LP201,Oil,4013,Havoline Energy,22/11/2016,426431,17.4,NET,Hobbs Bros Ltd,05942J
Gloucester City Council,23UE,Countryside Unit,LP201,Oil,4013,Rando HDZ,22/11/2016,426432,36,NET,Hobbs Bros Ltd,05942J
Gloucester City Council,23UE,Countryside Unit,LP201,Oil,4013,Standard Chainsaw,22/11/2016,426433,38.5,NET,Hobbs Bros Ltd,05942J
Gloucester City Council,23UE,Countryside Unit,LP201,Oil,4013,Stroke Oil,22/11/2016,426430,38,NET,Hobbs Bros Ltd,05942J
Gloucester City Council,23UE,Crematorium,HC200,Cleaning Materials,3600,Cleaning Supplies,22/11/2016,425812,230.73,NET,Acs Business Supplies Ltd,15791M
Gloucester City Council,23UE,"Cricket,3 Choirs,Cathedral",LA612,Sports Grants,7114,Consultancy & Support,22/11/2016,426358,10000,NET,Active Gloucestershire,04865L
Gloucester City Council,23UE,Development Management,PT200,Advertising And Publicity,5702,Advertisement 10/11/2016,22/11/2016,426384,175.3,NET,Local World Ltd,08556P
Gloucester City Council,23UE,Development Management,PT200,Basic Pay - Temporary Staff,2751,Temporary staff w/e 31/10/2016,22/11/2016,426049,1514.76,NET,The Oyster Partnership Limited,14900T
Gloucester City Council,23UE,Development Management,PT200,Fees For Services Received,5350,Membership 16/17,22/11/2016,426386,200,NET,Planning Jungle Limited,15068V
Gloucester City Council,23UE,Docks Complex - Castlemeads Cp,RB210,General Repair/Maint Buildings,3000,Landrover & Plant Trailer,22/11/2016,426338,150,NET,Ken Pink Plant Hire Ltd,56884V
Gloucester City Council,23UE,Docks Complex - Services,RB100,Cleaning Materials,3600,Cleaning Supplies,22/11/2016,425812,461.6,NET,Acs Business Supplies Ltd,15791M
Gloucester City Council,23UE,Docks Complex - Services,RB100,Security Services Fees,5351,Services December 2016,22/11/2016,426437,276.2,NET,G4s Cash Solutions (Uk) Ltd,04290V
Gloucester City Council,23UE,Economic Development,FP300,Consultants Fees,5349,50% of work & tasks completed,22/11/2016,426374,10000,NET,Athey Consulting Limited,17279J
Gloucester City Council,23UE,Flooding And Drainage,HE306,Maint Of Grounds - General,3030,Maintenance Visits,22/11/2016,426391,780,NET,Hydro-Logic Services Ltd,15842W
Gloucester City Council,23UE,Folk Museum,LM210,Cleaning Materials,3600,Cleaning Supplies,22/11/2016,425812,5.32,NET,Acs Business Supplies Ltd,15791M
Gloucester City Council,23UE,Folk Museum,LM210,Operational Equipment <5000,5012,Cleaning Supplies,22/11/2016,425812,31.98,NET,Acs Business Supplies Ltd,15791M
Gloucester City Council,23UE,Folk Museum,LM210,Security Services Fees,5351,Services December 2016,22/11/2016,426437,92.47,NET,G4s Cash Solutions (Uk) Ltd,04290V
Gloucester City Council,23UE,Gloucester Guildhall,LA100,Cleaning Materials,3600,Cleaning Supplies,22/11/2016,425812,44.95,NET,Acs Business Supplies Ltd,15791M
Gloucester City Council,23UE,Gloucester Guildhall,LA100,Security Services Fees,5351,Services December 2016,22/11/2016,426437,92.47,NET,G4s Cash Solutions (Uk) Ltd,04290V
Gloucester City Council,23UE,Guildhall Bar And Caf�,LA210,Catering Provisions -Food,5110,Food,22/11/2016,426428,106.85,NET,Woodward Foodservice,10714F
Gloucester City Council,23UE,Guildhall Bar And Caf�,LA210,Catering Provisions -Food,5110,Food,22/11/2016,426429,170.69,NET,Woodward Foodservice,10714F
Gloucester City Council,23UE,Guildhall Bar And Caf�,LA210,Catering Provisions -Food,5110,Milk,22/11/2016,426394,4.76,NET,Total Produce Gloucester,12645E
Gloucester City Council,23UE,Guildhall Bar And Caf�,LA210,Catering Provisions -Food,5110,Milk,22/11/2016,426395,7.14,NET,Total Produce Gloucester,12645E
Gloucester City Council,23UE,Guildhall Bar And Caf�,LA210,Catering Provisions -Liquor,5111,Drinks,22/11/2016,426396,882.87,NET,Cellar Supplies Cheltenham Ltd,01563L
Gloucester City Council,23UE,REDACTED,REDACTED,REDACTED,REDACTED,REDACTED,22/11/2016,REDACTED,109.37,NET,REDACTED,REDACTED
Gloucester City Council,23UE,REDACTED,REDACTED,REDACTED,REDACTED,REDACTED,22/11/2016,REDACTED,598.58,NET,REDACTED,REDACTED
Gloucester City Council,23UE,REDACTED,REDACTED,REDACTED,REDACTED,REDACTED,22/11/2016,REDACTED,100,NET,REDACTED,REDACTED
Gloucester City Council,23UE,REDACTED,REDACTED,REDACTED,REDACTED,REDACTED,22/11/2016,REDACTED,461.05,NET,REDACTED,REDACTED
Gloucester City Council,23UE,REDACTED,REDACTED,REDACTED,REDACTED,REDACTED,22/11/2016,REDACTED,344.53,NET,REDACTED,REDACTED
Gloucester City Council,23UE,REDACTED,REDACTED,REDACTED,REDACTED,REDACTED,22/11/2016,REDACTED,111.94,NET,REDACTED,REDACTED
Gloucester City Council,23UE,REDACTED,REDACTED,REDACTED,REDACTED,REDACTED,22/11/2016,REDACTED,108.07,NET,REDACTED,REDACTED
Gloucester City Council,23UE,REDACTED,REDACTED,REDACTED,REDACTED,REDACTED,22/11/2016,REDACTED,100,NET,REDACTED,REDACTED
Gloucester City Council,23UE,REDACTED,REDACTED,REDACTED,REDACTED,REDACTED,22/11/2016,REDACTED,225.52,NET,REDACTED,REDACTED
Gloucester City Council,23UE,REDACTED,REDACTED,REDACTED,REDACTED,REDACTED,22/11/2016,REDACTED,500,NET,REDACTED,REDACTED
Gloucester City Council,23UE,REDACTED,REDACTED,REDACTED,REDACTED,REDACTED,22/11/2016,REDACTED,930,NET,REDACTED,REDACTED
Gloucester City Council,23UE,REDACTED,REDACTED,REDACTED,REDACTED,REDACTED,22/11/2016,REDACTED,60,NET,REDACTED,REDACTED
Gloucester City Council,23UE,REDACTED,REDACTED,REDACTED,REDACTED,REDACTED,22/11/2016,REDACTED,-7.5,NET,REDACTED,REDACTED
Gloucester City Council,23UE,Homelessness Prevention,CH122,Fees For Services Received,5350,Service & Licence Charges,22/11/2016,426417,1712,NET,Experian Ltd,57191B
Gloucester City Council,23UE,Horsbere Brook Planting Ea,LY147,Contract Payments,0020,Deer Guards,22/11/2016,426418,190,CAP,Mount Pleasant Trees,51352K
Gloucester City Council,23UE,Horsbere Brook Planting Ea,LY147,Contract Payments,0020,Various Items,22/11/2016,426419,74.6,CAP,Mount Pleasant Trees,51352K
Gloucester City Council,23UE,Housing Works In Default,HD500,Clearance And Cleansing Fees,5384,30 Trier Way - Works,22/11/2016,426442,7400,NET,Beard & Tandy,03160V
Gloucester City Council,23UE,Housing Works In Default,HD500,Clearance And Cleansing Fees,5384,Works in default,22/11/2016,426390,801.67,NET,Mears Home Improvement Ltd,00096G
Gloucester City Council,23UE,Off Street Car Parks,PP110,General Repair/Maint Buildings,3000,Landrover & Plant Trailer,22/11/2016,426338,282,NET,Ken Pink Plant Hire Ltd,56884V
Gloucester City Council,23UE,Pollution Control,HE300,Fees For Services Received,5350,Various,22/11/2016,426356,20.1,NET,Gradko International Ltd,11063B
Gloucester City Council,23UE,Registration Of Electors,RS400,Fees For Services Received,5350,Gala Club - 02/03 Nov 2016,22/11/2016,426352,290,NET,Davis Property Maintenance And Electrical,17276R
Gloucester City Council,23UE,Registration Of Electors,RS400,Fees For Services Received,5350,Use of St Michaels Hall,22/11/2016,426353,480,NET,Court Community Association,57694T
Gloucester City Council,23UE,Retail Market - Landlord,HM300,Cleaning / Domestic Equipment,5011,Brushes,22/11/2016,426360,172,NET,Green And White Ltd,15784J
Gloucester City Council,23UE,Retail Market - Landlord,HM300,Cleaning / Domestic Equipment,5011,Cleaning Supplies,22/11/2016,425812,310.71,NET,Acs Business Supplies Ltd,15791M
Gloucester City Council,23UE,S106 Hempsted Way Play Area,LY156,Contract Payments,0020,Trench & Pipe works,22/11/2016,426376,650,CAP,Greenfields Garden Services Ltd,48130G
Gloucester City Council,23UE,Safer Stronger Communities,FP841,Other Minor Supplies Services,5590,Safer Gloucester homepage,22/11/2016,426403,225,NET,Icon.Net,52505Z
Gloucester City Council,23UE,The Arbor,HC501,Cleaning Materials,3600,Cleaning Supplies,22/11/2016,425812,48.55,NET,Acs Business Supplies Ltd,15791M
Gloucester City Council,23UE,Tic Trading,LT110,Publications For Sale,5064,Various Books,22/11/2016,426398,115.37,NET,David Whyman Map Sales,02653Z
Gloucester City Council,23UE,Tic Trading,LT110,Trade Refuse Sacks,5040,Trade Sacks,22/11/2016,426023,3697.6,NET,Enterprise (Aol) Ltd,06695G
Gloucester City Council,23UE,Tic Trading,LT110,Trade Refuse Sacks,5040,Trade Sacks,22/11/2016,426397,3697.6,NET,Enterprise (Aol) Ltd,06695G
Gloucester City Council,23UE,Tourism Marketing,LT100,Security Services Fees,5351,Services December 2016,22/11/2016,426437,92.47,NET,G4s Cash Solutions (Uk) Ltd,04290V
Gloucester City Council,23UE,Tourism Marketing,LT100,Window Cleaning,3610,Window Cleaning,22/11/2016,426389,12,NET,Interserve Fs (Uk) Limited,00442K
Gloucester City Council,23UE,Townscape Heritage Initiative,LY145,Contract Payments,0020,THI Grant 2nd claim,22/11/2016,426325,11961.99,CAP,Cape Homes Limited,17240N
Gloucester City Council,23UE,Business Transformation & Tech,RT700,Internet Service Provider Fees,5429,Charges Oct - Nov 2016,23/11/2016,425421,176.54,NET,Virgin Media Business,01869B
Gloucester City Council,23UE,Business Transformation & Tech,RT700,Mobile Phones,5409,Charges,23/11/2016,426144,336.12,NET,O2 Uk,16206Y
Gloucester City Council,23UE,Business Transformation & Tech,RT700,Mobile Phones,5409,Charges,23/11/2016,426145,337.78,NET,O2 Uk,16206Y
Gloucester City Council,23UE,Business Transformation & Tech,RT700,Mobile Phones,5409,Charges Oct- Nov 2016,23/11/2016,426153,1013.73,NET,O2 Uk,16206Y
Gloucester City Council,23UE,Business Transformation & Tech,RT700,Mobile Phones,5409,ChargesOct - Nov 2016,23/11/2016,425816,1030.61,NET,O2 Uk,16206Y
Gloucester City Council,23UE,Celebratory Lights,LT302,Christmas Lights,5024,Consultancy Services,23/11/2016,426379,180,NET,Peter Goodhind Associates Ltd,18890E
Gloucester City Council,23UE,Christmas Lights,GY006,Contract Payments,0020,Various Items,23/11/2016,426351,1500,CAP,Blachere Illuminations Uk Ltd,15818T
Gloucester City Council,23UE,Contact Centre,RB300,Postages,5400,Post 21/10 - 10/11 2016,23/11/2016,426425,1382.92,NET,Royal Mail S.Wales & South West,35830S
Gloucester City Council,23UE,Docks Headlease,RB538,Service Charges,3020,Docks Service Charge,23/11/2016,425575,13847,NET,Gloucester Quays Management Ltd,13497K
Gloucester City Council,23UE,Green Waste Vehicle,RY221,Contract Payments,0020,Kerbie Bag,23/11/2016,426041,20928,CAP,Cromwell Polythene Limited,17204T
Gloucester City Council,23UE,REDACTED,REDACTED,REDACTED,REDACTED,REDACTED,23/11/2016,REDACTED,50,NET,REDACTED,REDACTED
Gloucester City Council,23UE,REDACTED,REDACTED,REDACTED,REDACTED,REDACTED,23/11/2016,REDACTED,313.76,NET,REDACTED,REDACTED
Gloucester City Council,23UE,REDACTED,REDACTED,REDACTED,REDACTED,REDACTED,23/11/2016,REDACTED,106.97,NET,REDACTED,REDACTED
Gloucester City Council,23UE,REDACTED,REDACTED,REDACTED,REDACTED,REDACTED,23/11/2016,REDACTED,315.84,NET,REDACTED,REDACTED
Gloucester City Council,23UE,REDACTED,REDACTED,REDACTED,REDACTED,REDACTED,23/11/2016,REDACTED,630,NET,REDACTED,REDACTED
Gloucester City Council,23UE,REDACTED,REDACTED,REDACTED,REDACTED,REDACTED,23/11/2016,REDACTED,550,NET,REDACTED,REDACTED
Gloucester City Council,23UE,REDACTED,REDACTED,REDACTED,REDACTED,REDACTED,23/11/2016,REDACTED,800,NET,REDACTED,REDACTED
Gloucester City Council,23UE,Investment Property,RB500,Emergency Lighting,3055,install emergency lights Kings Hse,23/11/2016,426007,2120.64,NET,A & E Fire Equipment Limited,54289L
Gloucester City Council,23UE,Investment Property,RB500,Fire Alarm Maintenance,3053,Fire Alarm Installation,23/11/2016,425324,2382.26,NET,A & E Fire Equipment Limited,54289L
Gloucester City Council,23UE,Investment Property,RB500,Fire Fighting Equipment,3008,Fire Extinguishers,23/11/2016,423930,58.5,NET,Allcoopers Ltd,52921E
Gloucester City Council,23UE,Investment Property,RB500,General Repair/Maint Buildings,3000,Callout - Fire Panel Faults,23/11/2016,422560,75.25,NET,Allcoopers Ltd,52921E
Gloucester City Council,23UE,Meet & Greet,FP309,Advertising And Publicity,5702,quarter page adverts SEP/OCT16 GTO,23/11/2016,424957,300,NET,Landor Travel Publication Ltd,17284S
Gloucester City Council,23UE,Ranger Centre/Netheridge Wks,RY167,Contract Payments,0020,Various Items,23/11/2016,426400,57.23,CAP,John E Haith Ltd,15864K
Gloucester City Council,23UE,Safer Stronger Communities,FP841,Other Minor Supplies Services,5590,Designer Card Minder,23/11/2016,426378,125,NET,J N E Security Ltd,50340C
Gloucester City Council,23UE,Statutory Testing,RS310,Fees For Services Received,5350,Replacement smoke detectors,23/11/2016,426411,341.93,NET,Allcoopers Ltd,52921E
Gloucester City Council,23UE,Statutory Testing,RS310,Fire Alarm Maintenance,3053,Callout 13/10/16,23/11/2016,426370,53,NET,Allcoopers Ltd,52921E
Gloucester City Council,23UE,Statutory Testing,RS310,Fire Alarm Maintenance,3053,Install Batteries,23/11/2016,426369,62,NET,Allcoopers Ltd,52921E
Gloucester City Council,23UE,The Arbor,HC501,Catering Provisions -Food,5110,food,23/11/2016,426115,26.34,NET,Total Produce Gloucester,12645E
Gloucester City Council,23UE,The Arbor,HC501,Catering Provisions -Food,5110,food,23/11/2016,426116,11.03,NET,Total Produce Gloucester,12645E
Gloucester City Council,23UE,The Arbor,HC501,Catering Provisions -Food,5110,food,23/11/2016,426117,15.3,NET,Total Produce Gloucester,12645E
Gloucester City Council,23UE,The Arbor,HC501,Catering Provisions -Food,5110,food,23/11/2016,426125,27.71,NET,Total Produce Gloucester,12645E
Gloucester City Council,23UE,The Arbor,HC501,Catering Provisions -Food,5110,food,23/11/2016,426126,44.51,NET,Total Produce Gloucester,12645E
Gloucester City Council,23UE,Building Control,PT400,Fees For Services Received,5350,Building Control Partnership,24/11/2016,426574,16170.45,NET,Stroud District Council,42500D
Gloucester City Council,23UE,Building Control,PT400,Fees For Services Received,5350,Building Control Partnership,24/11/2016,426575,15797.9,NET,Stroud District Council,42500D
Gloucester City Council,23UE,Business Transformation & Tech,RT700,Computer Software Maintenance,5427,additional training days,24/11/2016,426509,2250,NET,Toptix (Uk) Ltd,16411V
Gloucester City Council,23UE,City Museum Catering,LM202,Catering Provisions -Food,5110,machine rental APR14,24/11/2016,425320,135,NET,La Spaziale Uk Ltd,11823P
Gloucester City Council,23UE,Civica Contract Revs & Bens,RT250,Contracted Services,6970,Pension Excess October 2016,24/11/2016,426401,11609.75,NET,Civica Uk Ltd,10841X
Gloucester City Council,23UE,Civic Admin And Hospitality,RC210,Hospitality,5122,Festival of Rememberance 06/11/16,24/11/2016,426047,1940,NET,Aspire Sports & Cultural Trust,08135V
Gloucester City Council,23UE,Civica Fod Contract,RT260,Computer Software <5000,5425,Open Revenues CTS module annual support,24/11/2016,426377,7100.1,NET,Civica Uk Ltd,10841X
Gloucester City Council,23UE,Civica It Contract,RT270,Contracted Services,6970,Pension Excess October 2016,24/11/2016,426402,902.28,NET,Civica Uk Ltd,10841X
Gloucester City Council,23UE,Client Revs & Bens Contract,RT240,Bailiffs Fees,5368,Dukes Direct SEP16,24/11/2016,426605,2993.31,NET,Civica Uk Ltd,10841X
Gloucester City Council,23UE,Client Revs & Bens Contract,RT240,Fees For Services Received,5350,arrest warrant execution,24/11/2016,426593,60,NET,Assevarate Ltd,11749A
Gloucester City Council,23UE,Council Streetcare Team,HI101,Conference/Meeting Expenses,5510,Registration Fee,24/11/2016,426112,90,NET,Association Of Local Government Ecologists,17258T
Gloucester City Council,23UE,Crematorium,HC200,Book Of Memory,5055,Site Visit 07/11/2016,24/11/2016,426408,60.6,NET,Hilton Cabinet Co Ltd,21910A
Gloucester City Council,23UE,Crematorium,HC200,Maint Of Grounds - General,3030,Fine Bark,24/11/2016,426380,1050,NET,Bhgs Ltd,00247K
Gloucester City Council,23UE,Development Management,PT200,Fees For Services Received,5350,"works re Aldi, Hucclecote Road",24/11/2016,426599,1500,NET,Dpds Ltd,05404V
Gloucester City Council,23UE,Eastgate Rooftop Emerg Works,RY159,Contract Payments,0020,Eastgate car park works,24/11/2016,426607,32633.54,CAP,Universal Sealants (Uk) Ltd,15743Z
Gloucester City Council,23UE,Flex Replacement,LY160,Contract Payments,0020,deposit re 26/6/16,24/11/2016,426608,137.5,CAP,The Warehouse Climbing Centre,11162S
Gloucester City Council,23UE,Flex Replacement,LY160,Contract Payments,0020,hire of mobile wall 26/06/16,24/11/2016,426609,412.5,CAP,The Warehouse Climbing Centre,11162S
Gloucester City Council,23UE,Flooding And Drainage,HE306,Maint Of Grounds - General,3030,Sud Brook works Cheney Close,24/11/2016,426594,135,NET,Rdb Safety Boat Ltd,13507J
Gloucester City Council,23UE,Food Safety,HE100,Other Minor Supplies Services,5590,folding probe thermometer,24/11/2016,426511,18,NET,Electronic Temperature Instruments Ltd,04785K
Gloucester City Council,23UE,Food Safety,HE100,Other Minor Supplies Services,5590,folding probe thermometers,24/11/2016,426510,58.5,NET,Electronic Temperature Instruments Ltd,04785K
Gloucester City Council,23UE,Gl1 Emergency Works,RY160,Contract Payments,0020,Fuel Cap,24/11/2016,426503,109.03,CAP,Loxston Groundcare,14309F
Gloucester City Council,23UE,Grants To Voluntary Sector,FG100,Grants,7100C,community grant 2016/17,24/11/2016,426582,6535,NET,Gloucester Fm,56154T
Gloucester City Council,23UE,Guildhall Bar And Caf�,LA210,Catering Provisions -Food,5110,milk,24/11/2016,426563,4.76,NET,Total Produce Gloucester,12645E
Gloucester City Council,23UE,REDACTED,REDACTED,REDACTED,REDACTED,REDACTED,24/11/2016,REDACTED,329.79,NET,REDACTED,REDACTED
Gloucester City Council,23UE,REDACTED,REDACTED,REDACTED,REDACTED,REDACTED,24/11/2016,REDACTED,100,NET,REDACTED,REDACTED
Gloucester City Council,23UE,REDACTED,REDACTED,REDACTED,REDACTED,REDACTED,24/11/2016,REDACTED,125,NET,REDACTED,REDACTED
Gloucester City Council,23UE,Guildhall Events,LA200,Fees For Services Received,5350,DEC-Jan16 brochure distribution,24/11/2016,426528,382.5,NET,Glide Media,58829J
Gloucester City Council,23UE,Internal Audit,RT300,Fees For Services Received,5350,Internal Audit & Risk Management,24/11/2016,425292,45238.25,NET,Gloucestershire County Council,18650D
Gloucester City Council,23UE,REDACTED,REDACTED,REDACTED,REDACTED,REDACTED,24/11/2016,REDACTED,996,NET,REDACTED,REDACTED
Gloucester City Council,23UE,Planning Policy & Heritage,PT300,Basic Pay - Temporary Staff,2751,temporary staff w/e 07/11/2016,24/11/2016,426406,2204,NET,The Oyster Partnership Limited,14900T
Gloucester City Council,23UE,Planning Policy & Heritage,PT300,Basic Pay - Temporary Staff,2751,temoprary staff w/e 31/10/2016,24/11/2016,426409,2387,NET,The Oyster Partnership Limited,14900T
Gloucester City Council,23UE,Rehousing,CH111,Fees For Services Received,5350,medical report,24/11/2016,426596,20.5,NET,Rosebank Health,03041E
Gloucester City Council,23UE,Rehousing,CH111,Fees For Services Received,5350,medical report,24/11/2016,426597,20.5,NET,Rosebank Health,03041E
Gloucester City Council,23UE,Safer Stronger Communities,FP841,Other Minor Supplies Services,5590,A3 Calendar printed,24/11/2016,426501,762,NET,Icon.Net,52505Z
Gloucester City Council,23UE,The Arbor,HC501,Basic Pay -Duty Managers,1501,chalk board menu for tea room,24/11/2016,426541,75,NET,Sign Painting By Dawn,17277N
Gloucester City Council,23UE,The Arbor,HC501,Catering Provisions -Food,5110,food,24/11/2016,426583,32.04,NET,Total Produce Gloucester,12645E
Gloucester City Council,23UE,The Arbor,HC501,Catering Provisions -Food,5110,food,24/11/2016,426584,14.5,NET,Total Produce Gloucester,12645E
Gloucester City Council,23UE,The Arbor,HC501,Catering Provisions -Food,5110,food,24/11/2016,426585,24.39,NET,Total Produce Gloucester,12645E
Gloucester City Council,23UE,The Arbor,HC501,Catering Provisions -Food,5110,food,24/11/2016,426586,14.83,NET,Total Produce Gloucester,12645E
Gloucester City Council,23UE,The Arbor,HC501,Catering Provisions -Food,5110,food,24/11/2016,426587,48.53,NET,Total Produce Gloucester,12645E
Gloucester City Council,23UE,The Arbor,HC501,Catering Provisions -Food,5110,food,24/11/2016,426588,25.11,NET,Total Produce Gloucester,12645E
Gloucester City Council,23UE,The Arbor,HC501,Catering Provisions -Food,5110,food,24/11/2016,426589,179.08,NET,Bidvest Foodservice (3663),55585U
Gloucester City Council,23UE,The Arbor,HC501,Catering Provisions -Food,5110,food,24/11/2016,426610,406.86,NET,Bidvest Foodservice (3663),55585U
Gloucester City Council,23UE,The Arbor,HC501,Catering Provisions -Food,5110,Food,24/11/2016,426357,221.12,NET,Bidvest Foodservice (3663),55585U
Gloucester City Council,23UE,REDACTED,REDACTED,REDACTED,REDACTED,REDACTED,24/11/2016,REDACTED,48,NET,REDACTED,REDACTED
Gloucester City Council,23UE,Aspire Admin Charges,LC105,Fees For Services Received,5350,November 2016 Staff memberships,25/11/2016,426508,406,NET,Aspire Sports & Cultural Trust,08135V
Gloucester City Council,23UE,Blackfriars,LA609,Fees For Services Received,5350,CCTV System Fault,25/11/2016,423004,134.5,NET,Chubb Fire & Security Ltd,54582K
Gloucester City Council,23UE,Blackfriars,LA609,Fees For Services Received,5350,Credited,25/11/2016,426444,134.5,NET,Chubb Fire & Security Ltd,54582K
Gloucester City Council,23UE,Business Transformation & Tech,RT700,Mobile Phones,5409,GALAXY J3 BLACK,25/11/2016,426645,121.55,NET,O2 Uk,16206Y
Gloucester City Council,23UE,Cemeteries,HC300,Maint Of Grounds - General,3030,Plastic Leaf Rake,25/11/2016,426507,59.5,NET,Spaldings,48759Y
Gloucester City Council,23UE,City Museum And Art Gallery,LM200,Publications For Sale,5064,goods for resale,25/11/2016,424771,38.64,NET,Ashwood & Company,51123D
Gloucester City Council,23UE,City Museum And Art Gallery,LM200,Publications For Sale,5064,goods for resale,25/11/2016,424791,305.55,NET,Ashwood & Company,51123D
Gloucester City Council,23UE,Contact Centre,RB300,Uniforms,5201,workwear,25/11/2016,426590,214.95,NET,Meltemi Company Clothing Limited,54572N
Gloucester City Council,23UE,Countryside Unit,LP201,Purchase Of Livestock,5843,register female 7545,25/11/2016,426595,25,NET,Gloucester Cattle Society,56263L
Gloucester City Council,23UE,Crematorium,HC200,"Seeds, Trees, Plants, Shrubs",3028,Yellow Roses,25/11/2016,426570,28.5,NET,Genus Plant Sourcing,14143S
Gloucester City Council,23UE,Development Management,PT200,Basic Pay - Temporary Staff,2751,temporary staff w/e 07/11/2016,25/11/2016,426404,1863.55,NET,The Oyster Partnership Limited,14900T
Gloucester City Council,23UE,Development Management,PT200,Basic Pay - Temporary Staff,2751,temporary staff w/e 07/11/2016,25/11/2016,426405,1534.26,NET,The Oyster Partnership Limited,14900T
Gloucester City Council,23UE,Development Management,PT200,Basic Pay - Temporary Staff,2751,temporary staff w/c 14/11/16,25/11/2016,426603,736.45,NET,The Oyster Partnership Limited,14900T
Gloucester City Council,23UE,Development Management,PT200,Basic Pay - Temporary Staff,2751,temporary staff w/c 14/11 & 21/11,25/11/2016,426612,3087.24,NET,The Oyster Partnership Limited,14900T
Gloucester City Council,23UE,REDACTED,REDACTED,REDACTED,REDACTED,REDACTED,25/11/2016,REDACTED,1000,NET,REDACTED,REDACTED
Gloucester City Council,23UE,Events,LT410,Events,5952,Docks Fireworks 2016 balance,25/11/2016,425864,4951.2,NET,Laser Hire,59139U
Gloucester City Council,23UE,Flooding And Drainage,HE306,Maint Of Grounds - General,3030,install deep water signs at Olympus Park,25/11/2016,426539,50,NET,Mr M G Horton T/A H&T Property Maintenance,09210X
Gloucester City Council,23UE,Flooding And Drainage,HE306,Maint Of Grounds - General,3030,St Peters final maintenance visit,25/11/2016,426592,375,NET,Rj Contracting (Environmental) Ltd,07429H
Gloucester City Council,23UE,Folk Museum,LM210,Publications For Sale,5064,goods for resale,25/11/2016,424260,60,NET,Ashwood & Company,51123D
Gloucester City Council,23UE,Gloucester Guildhall,LA100,Fees For Services Received,5350,workware for Guidlhall staff,25/11/2016,426538,656.53,NET,Workware Express Ltd,17189L
Gloucester City Council,23UE,Green Waste Vehicle,RY221,Contract Payments,0020,Kerbie Bag,25/11/2016,426506,20928,CAP,Cromwell Polythene Limited,17204T
Gloucester City Council,23UE,Head Of Regeneration & Eco Dev,GO102,Advertising And Publicity,5702,Feature in August 16 Issue,25/11/2016,425424,1200,NET,Moose Marketing & Pr,03952A
Gloucester City Council,23UE,Homelessness,CH120,Fees For Services Received,5350,medical report,25/11/2016,426567,20.5,NET,Rosebank Health,03041E
Gloucester City Council,23UE,Homelessness,CH120,Rent In Advance,5516,HOUSING RIA,25/11/2016,426646,588.52,NET,Chawda Holdings Ltd,08904N
Gloucester City Council,23UE,Homelessness Prevention,CH122,Basic Pay - Temporary Staff,2751,temporary staff w/e 18/11/16,25/11/2016,426611,374.97,NET,One To One Recruitment,04752H
Gloucester City Council,23UE,Nms Contract,HI102,Contracted Services,6970,November 2016 service fee,25/11/2016,426562,478446.3,NET,Enterprise (Aol) Ltd,06695G
Gloucester City Council,23UE,Nms Contract,HI102,Contracted Services,6970,October 2016 commodity top up,25/11/2016,426561,25856,NET,Enterprise (Aol) Ltd,06695G
Gloucester City Council,23UE,Planning Policy & Heritage,PT300,Basic Pay - Temporary Staff,2751,temporary staff w/c 14/11/16,25/11/2016,426602,2387.58,NET,The Oyster Partnership Limited,14900T
Gloucester City Council,23UE,Rehousing,CH111,Fees For Services Received,5350,Medical Questionnaire,25/11/2016,426350,38.5,NET,Partners In Health,06868K
Gloucester City Council,23UE,Superbreak,LT104,Materials For Sale,5080,tickets sold on commission,25/11/2016,426565,497.92,NET,Superbreak Mini Holidays,00712D
Gloucester City Council,23UE,Superbreak,LT104,Materials For Sale,5080,tickets sold on commission,25/11/2016,426566,59,NET,Superbreak Mini Holidays,00712D
Gloucester City Council,23UE,Superbreak,LT104,Sale Of Goods And Services,9230,tickets sold on commission,25/11/2016,426565,-41.48,NET,Superbreak Mini Holidays,00712D
Gloucester City Council,23UE,Superbreak,LT104,Sale Of Goods And Services,9230,tickets sold on commission,25/11/2016,426566,-4.91,NET,Superbreak Mini Holidays,00712D
Gloucester City Council,23UE,The Arbor,HC501,Catering Provisions -Food,5110,food,25/11/2016,426578,69.99,NET,Janes Pantry,24500W
Gloucester City Council,23UE,The Arbor,HC501,Catering Provisions -Food,5110,Food w/e 06/11/2016,25/11/2016,426149,212.02,NET,Janes Pantry,24500W
Gloucester City Council,23UE,The Arbor,HC501,Operational Equipment <5000,5012,VGA Cable,25/11/2016,426069,100,NET,Revolution Multimedia,07880L
Gloucester City Council,23UE,Business Transformation & Tech,RT700,Fees For Services Received,5350,ICT Strategy Development,28/11/2016,426066,6825,NET,Socitm Service Ltd,52552P
Gloucester City Council,23UE,Business Transformation & Tech,RT700,Internet Service Provider Fees,5429,Charges,28/11/2016,426133,16.99,NET,Virgin Media Payments Ltd,09376J
Gloucester City Council,23UE,Celebratory Lights,LT302,Christmas Lights,5024,Xmas lights brackets,28/11/2016,426689,120,NET,Mpl Wrought Iron Llp,03907P
Gloucester City Council,23UE,Cemeteries,HC300,Repair/Maint Of Monuments,3004,RC 28/15 & fibers for Cemetary,28/11/2016,426700,458.48,NET,Easy Mix Ltd,01403L
Gloucester City Council,23UE,Cemeteries,HC300,Tyres,4014,vehicle tyres,28/11/2016,426686,91.92,NET,Ats Euromaster Ltd,06005E
Gloucester City Council,23UE,Civica Contract Revs & Bens,RT250,Fees For Services Received,5350,NI charges APR-SEP16,28/11/2016,425201,4435.68,NET,Civica Uk Ltd,10841X
Gloucester City Council,23UE,Countryside Unit,LP201,Contract Cleaning,3620,ranger centre cleaning,28/11/2016,426690,130,NET,Cv Fisher Cleaning Services,14907C
Gloucester City Council,23UE,Crematorium,HC200,National Assist Act Burial Exp,5593,Fees re Funeral 10/11/16,28/11/2016,426701,628,NET,Selim Smith & Co Funeral Directors,15156X
Gloucester City Council,23UE,Development Management,PT200,Printing,5300,planning printing,28/11/2016,426692,2795,NET,Alpha Colour Printers Ltd,00945B
Gloucester City Council,23UE,Events,LT410,Fees For Services Received,5350,Docks fireworks First Aid cover 2016,28/11/2016,426504,748,NET,St John Ambulance,03597Y
Gloucester City Council,23UE,Grants To Voluntary Sector,FG100,Grants,7100C,COMMUNITY GRANT 2016/17,28/11/2016,426731,600,NET,Abbeydale Community Association,50263V
Gloucester City Council,23UE,Grants To Voluntary Sector,FG100,Grants,7100C,COMMUNITY GRANT 2016/17,28/11/2016,426732,2985,NET,Friends Of Saintbridge Pond,04367J
Gloucester City Council,23UE,REDACTED,REDACTED,REDACTED,REDACTED,REDACTED,28/11/2016,REDACTED,1200,NET,REDACTED,REDACTED
Gloucester City Council,23UE,Grants To Voluntary Sector,FG100,Members Allocation Fund,7100F,MEMBERS ALLOCATION GRANT 2016/17,28/11/2016,426733,500,NET,My:Uk,10755R
Gloucester City Council,23UE,REDACTED,REDACTED,REDACTED,REDACTED,REDACTED,28/11/2016,REDACTED,320,NET,REDACTED,REDACTED
Gloucester City Council,23UE,REDACTED,REDACTED,REDACTED,REDACTED,REDACTED,28/11/2016,REDACTED,900,NET,REDACTED,REDACTED
Gloucester City Council,23UE,REDACTED,REDACTED,REDACTED,REDACTED,REDACTED,28/11/2016,REDACTED,440,NET,REDACTED,REDACTED
Gloucester City Council,23UE,REDACTED,REDACTED,REDACTED,REDACTED,REDACTED,28/11/2016,REDACTED,50,NET,REDACTED,REDACTED
Gloucester City Council,23UE,REDACTED,REDACTED,REDACTED,REDACTED,REDACTED,28/11/2016,REDACTED,-48,NET,REDACTED,REDACTED
Gloucester City Council,23UE,REDACTED,REDACTED,REDACTED,REDACTED,REDACTED,28/11/2016,REDACTED,-135,NET,REDACTED,REDACTED
Gloucester City Council,23UE,Head Of Regeneration & Eco Dev,GO102,Advertising And Publicity,5702,November 2016 special feature,28/11/2016,426688,1400,NET,Moose Marketing & Pr,03952A
Gloucester City Council,23UE,Homelessness,CH120,Removal And Storage Fees,5513,storage fees,28/11/2016,426696,202.5,NET,Advanced Removals & Storage Ltd,57142R
Gloucester City Council,23UE,Investment Property,RB500,Asbestos Management Plan,3003,Wessex House technical services,28/11/2016,426685,1495,NET,Mss Group,14469F
Gloucester City Council,23UE,REDACTED,REDACTED,REDACTED,REDACTED,REDACTED,28/11/2016,REDACTED,8.7,NET,REDACTED,REDACTED
Gloucester City Council,23UE,Rehousing,CH111,Fees For Services Received,5350,medical report,28/11/2016,426693,20.5,NET,Dr R Watkins & Partners,59237H
Gloucester City Council,23UE,Retail Market - Landlord,HM300,Sewerage And Environ Charges,3402,JUN16 bi-monthly drain check,28/11/2016,426705,180,NET,The Drain Man Ltd,16460F
Gloucester City Council,23UE,Retail Market - Landlord,HM300,Window Cleaning,3610,OCT16 window cleaning,28/11/2016,426684,140,NET,Cornwall Cleaning Services,14050A
Gloucester City Council,23UE,REDACTED,REDACTED,REDACTED,REDACTED,REDACTED,28/11/2016,REDACTED,6092,CAP,REDACTED,REDACTED
Gloucester City Council,23UE,Taxi Marshalling Scheme,HL101,Taxi Marshals,5387,Taxi Marshall - 07 & 08 Oct 2016,28/11/2016,426367,86.25,NET,Cuff Facilities Ltd,16436C
Gloucester City Council,23UE,Taxi Marshalling Scheme,HL101,Taxi Marshals,5387,Taxi Marshall 14 & 15 Oct 2016,28/11/2016,426366,132.25,NET,Cuff Facilities Ltd,16436C
Gloucester City Council,23UE,Taxi Marshalling Scheme,HL101,Taxi Marshals,5387,Taxi Marshall - 20/10/2016,28/11/2016,426365,40.25,NET,Cuff Facilities Ltd,16436C
Gloucester City Council,23UE,Taxi Marshalling Scheme,HL101,Taxi Marshals,5387,Taxi Marshall 28/29 Oct 2016,28/11/2016,426364,80.5,NET,Cuff Facilities Ltd,16436C
Gloucester City Council,23UE,Taxi Marshalling Scheme,HL101,Taxi Marshals,5387,Taxi Marshall - 30/09 & 01/10 2016,28/11/2016,426368,115,NET,Cuff Facilities Ltd,16436C
Gloucester City Council,23UE,Tic Trading,LT110,Publications,5060,Cotswolds AONB books for resale,28/11/2016,426707,30,NET,Darien-Jones Publishing,04497U
Gloucester City Council,23UE,16 Commercial Road,RB539,General Repair/Maint Buildings,3000,Commercial Road - asbestos removal,29/11/2016,422152,700,NET,Nick Bevan Consulting Ltd,15475B
Gloucester City Council,23UE,Barton & Tredworth Pos S106,LY159,Contract Payments,0020,Various Items,29/11/2016,426383,1623.64,CAP,Wybone Limited,13540L
Gloucester City Council,23UE,Business Transformation & Tech,RT700,Computer Hardware Maintenance,5426,plotter copier maintenance,29/11/2016,425737,111.24,NET,Stanford Marsh Ltd,51139M
Gloucester City Council,23UE,Business Transformation & Tech,RT700,Computer Software <5000,5425,Photoshop Licencing,29/11/2016,426349,342.96,NET,Civica Services Ltd,58099E
Gloucester City Council,23UE,Business Transformation & Tech,RT700,Licences,5703,Advanced Cache Management,29/11/2016,425282,807.75,NET,Northgate Public Services Uk Ltd,08982S
Gloucester City Council,23UE,Client Revs & Bens Contract,RT240,Bailiffs Fees,5368,vat only invoice,29/11/2016,426672,0,NET,Bristow & Sutor,05450M
Gloucester City Council,23UE,Client Revs & Bens Contract,RT240,Bailiffs Fees,5368,vat only invoice,29/11/2016,426673,0,NET,Bristow & Sutor,05450M
Gloucester City Council,23UE,Client Revs & Bens Contract,RT240,Bailiffs Fees,5368,VAT on statutory fees,29/11/2016,425649,0,NET,Bristow & Sutor,05450M
Gloucester City Council,23UE,Council Streetcare Team,HI101,Maint Of Grounds - General,3030,Gloucester Park fountain works,29/11/2016,426604,990,NET,Ustigate Ltd,17252F
Gloucester City Council,23UE,Council Streetcare Team,HI101,Operational Materials,5070,Plock Court - Strimming,29/11/2016,426058,60,NET,Greenfields Garden Services Ltd,48130G
Gloucester City Council,23UE,Docks Complex - Services,RB100,Lift Maintenance,3051,Engineer 11/08/2016 HKP,29/11/2016,423464,112.5,NET,Pickerings Europe Ltd,58816U
Gloucester City Council,23UE,Docks Complex - Services,RB100,Lift Maintenance,3051,Lift Inspection,29/11/2016,417075,689.62,NET,Schindler Ltd,06826C
Gloucester City Council,23UE,Docks Complex - Services,RB100,Lift Maintenance,3051,N Warehouse lift service Nov16-Feb17,29/11/2016,424455,709.62,NET,Schindler Ltd,06826C
Gloucester City Council,23UE,General Drainage Works,PY241,Contract Payments,0020,Barnwood Park trash screen,29/11/2016,426766,21843,CAP,Nailsworth Services Ltd,16507E
Gloucester City Council,23UE,General Works Fund,RY203,Capital General Repairs & Main,0013,Testing,29/11/2016,426413,17834.39,CAP,Total Leisure Engineering Ltd,15320J
Gloucester City Council,23UE,Grants To Voluntary Sector,FG100,Members Allocation Fund,7100F,members grant 2016/17 Stephens,29/11/2016,426735,500,NET,St Paul And St Stephen S Church,16211P
Gloucester City Council,23UE,Guildhall Events,LA200,Fees For Services Received,5350,beer for Octoberfest,29/11/2016,426768,398,NET,The Beer Agent,16181N
Gloucester City Council,23UE,Human Resources,EH100,Fees For Services Received,5350,Payroll Charges October 2016,29/11/2016,426152,2867.12,NET,Gloucestershire County Council,18650D
Gloucester City Council,23UE,Investment Property,RB500,General Repair/Maint Buildings,3000,CCTV Look,29/11/2016,420729,205,NET,Three Counties Drain Service,44033V
Gloucester City Council,23UE,Investment Property,RB500,Internal Decs - Communal Areas,3050,Works 20/10/2016,29/11/2016,425808,727,NET,Pickerings Europe Ltd,58816U
Gloucester City Council,23UE,Investment Property,RB500,Lift Maintenance,3051,EASTGATE MARKET LIFT 4 inspection,29/11/2016,425008,121.25,NET,Pickerings Europe Ltd,58816U
Gloucester City Council,23UE,Investment Property,RB500,Lift Maintenance,3051,Engineer 09/09/2016 Blackfriars,29/11/2016,425289,46.88,NET,Pickerings Europe Ltd,58816U
Gloucester City Council,23UE,Investment Property,RB500,Lift Maintenance,3051,Lift Inspection,29/11/2016,426361,32,NET,Pickerings Europe Ltd,58816U
Gloucester City Council,23UE,Investment Property,RB500,Lift Maintenance,3051,Lift Inspection Guildhall,29/11/2016,422796,311.5,NET,Pickerings Europe Ltd,58816U
Gloucester City Council,23UE,Investment Property,RB500,Lift Maintenance,3051,Lift Inspections,29/11/2016,426348,106.25,NET,Pickerings Europe Ltd,58816U
Gloucester City Council,23UE,Investment Property,RB500,Lift Maintenance,3051,Lift Inspections - Blackfriars,29/11/2016,422798,138.25,NET,Pickerings Europe Ltd,58816U
Gloucester City Council,23UE,Investment Property,RB500,Lift Maintenance,3051,Lift Inspections - Blackfriars,29/11/2016,426422,138.25,NET,Pickerings Europe Ltd,58816U
Gloucester City Council,23UE,Investment Property,RB500,Lift Maintenance,3051,Lift Inspections- City Museum,29/11/2016,422799,153.25,NET,Pickerings Europe Ltd,58816U
Gloucester City Council,23UE,Investment Property,RB500,Lift Maintenance,3051,Lift Inspections - Eastgate Market,29/11/2016,422773,121.25,NET,Pickerings Europe Ltd,58816U
Gloucester City Council,23UE,Investment Property,RB500,Lift Maintenance,3051,Lift Inspections - Eastgate Market,29/11/2016,426424,242.5,NET,Pickerings Europe Ltd,58816U
Gloucester City Council,23UE,Investment Property,RB500,Lift Maintenance,3051,Lift Inspections - Folk Museum,29/11/2016,422772,106.25,NET,Pickerings Europe Ltd,58816U
Gloucester City Council,23UE,Investment Property,RB500,Lift Maintenance,3051,Lift Inspections - GL1,29/11/2016,422800,242.5,NET,Pickerings Europe Ltd,58816U
Gloucester City Council,23UE,Investment Property,RB500,Lift Maintenance,3051,Lift Inspections - GL1,29/11/2016,426423,242.5,NET,Pickerings Europe Ltd,58816U
Gloucester City Council,23UE,Investment Property,RB500,Lift Maintenance,3051,Lift Inspections - HKP,29/11/2016,426420,311.5,NET,Pickerings Europe Ltd,58816U
Gloucester City Council,23UE,Investment Property,RB500,Lift Maintenance,3051,Lift Inspections - The Docks,29/11/2016,426421,373.75,NET,Pickerings Europe Ltd,58816U
Gloucester City Council,23UE,Investment Property,RB500,Smoke Vents,3060,Eastgate Market works,29/11/2016,425995,1824,NET,Brakel Airvent Ltd,51073T
Gloucester City Council,23UE,Northwarehouse,RB150,Lift Maintenance,3051,Lift Inspection,29/11/2016,421134,709.62,NET,Schindler Ltd,06826C
Gloucester City Council,23UE,Off Street Car Parks,PP110,General Repair/Maint Buildings,3000,Longsmith St car park survey,29/11/2016,426706,12997.8,NET,Makers Construction Limited,17250K
Gloucester City Council,23UE,Off Street Car Parks,PP110,Lease Lines,5411,Blue Badge Holder Signs,29/11/2016,426029,97.26,NET,Hanman Split Ltd,56889J
Gloucester City Council,23UE,Printing,RP103,Printing,5300,Printing October 2016,29/11/2016,425911,703.15,NET,Alpha Colour Printers Ltd,00945B
Gloucester City Council,23UE,Shopmobility,PE200,Maintenance Of Equipment,5030,Repairs & Replacements,29/11/2016,426415,72,NET,Disabled Care & Mobility,12675V
Gloucester City Council,23UE,Shopmobility,PE200,Other Minor Supplies Services,5590,Membership November 2016,29/11/2016,426104,91.25,NET,Gloucester City Safe,14709J
Gloucester City Council,23UE,Statutory Testing,RS310,Fire Fighting Equipment,3008,Additional Works - Fire Extinguishers,29/11/2016,423957,211.61,NET,Allcoopers Ltd,52921E
Gloucester City Council,23UE,Statutory Testing,RS310,Fire Fighting Equipment,3008,Arbor emergency lx,29/11/2016,426714,55,NET,Allcoopers Ltd,52921E
Gloucester City Council,23UE,Statutory Testing,RS310,Fire Fighting Equipment,3008,Arbor fire alarm 1/12/16-30/11/17,29/11/2016,426533,163,NET,Allcoopers Ltd,52921E
Gloucester City Council,23UE,Statutory Testing,RS310,Fire Fighting Equipment,3008,Aviary emergency lights,29/11/2016,426709,80.5,NET,Allcoopers Ltd,52921E
Gloucester City Council,23UE,Statutory Testing,RS310,Fire Fighting Equipment,3008,Blackfriars fire alarm 1/12/16-30/11/17,29/11/2016,426529,240.5,NET,Allcoopers Ltd,52921E
Gloucester City Council,23UE,Statutory Testing,RS310,Fire Fighting Equipment,3008,Blackfriars Priory emergency lights,29/11/2016,426721,87.5,NET,Allcoopers Ltd,52921E
Gloucester City Council,23UE,Statutory Testing,RS310,Fire Fighting Equipment,3008,City Museum emergency lights,29/11/2016,426723,220,NET,Allcoopers Ltd,52921E
Gloucester City Council,23UE,Statutory Testing,RS310,Fire Fighting Equipment,3008,city museum emergency lights,29/11/2016,426720,493,NET,Allcoopers Ltd,52921E
Gloucester City Council,23UE,Statutory Testing,RS310,Fire Fighting Equipment,3008,Crem emergency lights,29/11/2016,426711,55,NET,Allcoopers Ltd,52921E
Gloucester City Council,23UE,Statutory Testing,RS310,Fire Fighting Equipment,3008,Crem fire alarm 1/12/16-30/11/17,29/11/2016,426531,218,NET,Allcoopers Ltd,52921E
Gloucester City Council,23UE,Statutory Testing,RS310,Fire Fighting Equipment,3008,Folk Museum emergency lights,29/11/2016,426718,55,NET,Allcoopers Ltd,52921E
Gloucester City Council,23UE,Statutory Testing,RS310,Fire Fighting Equipment,3008,Folk Museum fire alarm DEC16-NOV17,29/11/2016,426580,218,NET,Allcoopers Ltd,52921E
Gloucester City Council,23UE,Statutory Testing,RS310,Fire Fighting Equipment,3008,Guildhall fire extinguisher service,29/11/2016,426591,58.5,NET,Allcoopers Ltd,52921E
Gloucester City Council,23UE,Statutory Testing,RS310,Fire Fighting Equipment,3008,HKP emergency lights,29/11/2016,426719,440,NET,Allcoopers Ltd,52921E
Gloucester City Council,23UE,Statutory Testing,RS310,Fire Fighting Equipment,3008,HKP fire alarm 1/12/16-30/11/16,29/11/2016,426534,603,NET,Allcoopers Ltd,52921E
Gloucester City Council,23UE,Statutory Testing,RS310,Fire Fighting Equipment,3008,Kings Walk car park emergency lx,29/11/2016,426715,140.5,NET,Allcoopers Ltd,52921E
Gloucester City Council,23UE,Statutory Testing,RS310,Fire Fighting Equipment,3008,Longsmith St car park emerg. lx,29/11/2016,426710,140.5,NET,Allcoopers Ltd,52921E
Gloucester City Council,23UE,Statutory Testing,RS310,Fire Fighting Equipment,3008,North Warehouse emergency lights,29/11/2016,426724,110,NET,Allcoopers Ltd,52921E
Gloucester City Council,23UE,Statutory Testing,RS310,Fire Fighting Equipment,3008,North Warehouse fire alarm 1/12/16-nov17,29/11/2016,426535,273,NET,Allcoopers Ltd,52921E
Gloucester City Council,23UE,Statutory Testing,RS310,Fire Fighting Equipment,3008,Ranger centre emergency lx,29/11/2016,426716,55,NET,Allcoopers Ltd,52921E
Gloucester City Council,23UE,Statutory Testing,RS310,Fire Fighting Equipment,3008,Ranger Centre fire alarm DEC16-NOV17,29/11/2016,426536,163,NET,Allcoopers Ltd,52921E
Gloucester City Council,23UE,Statutory Testing,RS310,Fire Fighting Equipment,3008,Shopmobility emergency light,29/11/2016,426712,55,NET,Allcoopers Ltd,52921E
Gloucester City Council,23UE,Statutory Testing,RS310,Fire Fighting Equipment,3008,Shopmobility fire alarm 1/12/16-30/11/17,29/11/2016,426532,173,NET,Allcoopers Ltd,52921E
Gloucester City Council,23UE,Statutory Testing,RS310,Fire Fighting Equipment,3008,Swiss Cottage toilet emergency lx,29/11/2016,426717,108,NET,Allcoopers Ltd,52921E
Gloucester City Council,23UE,Statutory Testing,RS310,Fire Fighting Equipment,3008,TIC emergency lights,29/11/2016,426722,55,NET,Allcoopers Ltd,52921E
Gloucester City Council,23UE,Statutory Testing,RS310,Fire Fighting Equipment,3008,TIC fire alarm 1/12/16-30/11/17,29/11/2016,426530,163,NET,Allcoopers Ltd,52921E
Gloucester City Council,23UE,Statutory Testing,RS310,Fire Fighting Equipment,3008,TIC fire extinguishers DEC16-NOV17,29/11/2016,426537,20.25,NET,Allcoopers Ltd,52921E
Gloucester City Council,23UE,Statutory Testing,RS310,Fire Fighting Equipment,3008,Westgate St toilet emerg lx,29/11/2016,426713,108,NET,Allcoopers Ltd,52921E
Gloucester City Council,23UE,Tic Rovercard Sales,LT101,Materials For Sale,5080,tickets sold on commission,29/11/2016,426676,2566,NET,Stagecoach Services Ltd,56554W
Gloucester City Council,23UE,Tic Rovercard Sales,LT101,Sale Of Goods And Services,9230,tickets sold on commission,29/11/2016,426676,-213.83,NET,Stagecoach Services Ltd,56554W
Gloucester City Council,23UE,Tic Trading,LT110,Materials For Sale,5080,treasure trails booklets,29/11/2016,426564,42.5,NET,Explore 4 Fun,17275T
Gloucester City Council,23UE,REDACTED,REDACTED,REDACTED,REDACTED,REDACTED,30/11/2016,REDACTED,831,NET,REDACTED,REDACTED
Gloucester City Council,23UE,Car Parks,GY002,Contract Payments,0020,Parkadvance equipment installation,30/11/2016,425145,29981.8,CAP,Wps United Kingdom Ltd,16424K
Gloucester City Council,23UE,City Museum Catering,LM202,Catering Provisions -Food,5110,Machine Rental,30/11/2016,426056,135,NET,La Spaziale Uk Ltd,11823P
Gloucester City Council,23UE,Contaminated Land,HE301,Fees For Services Received,5350,historical nationall grid mapping data,30/11/2016,426835,250,NET,Landmark Information Group Ltd,59535W
Gloucester City Council,23UE,Council Streetcare Team,HI101,Maint Of Grounds - General,3030,LONGLEVENS SPORTS PITCH WORKS,30/11/2016,426772,250,NET,Paul Gibson Sports Pitch Maintenance,16477M
Gloucester City Council,23UE,Council Streetcare Team,HI101,Operational Materials,5070,yellow rattle,30/11/2016,426691,200,NET,Yellow Flag Wildflowers,02743X
Gloucester City Council,23UE,Crematorium,HC200,Fees For Services Received,5350,Crem Fees November 2016,30/11/2016,426874,1398.96,NET,Dr D Martin,00890P
Gloucester City Council,23UE,Crematorium,HC200,Fees For Services Received,5350,Crem Fees November 2016,30/11/2016,426875,388.88,NET,Dr R W Bell,01571P
Gloucester City Council,23UE,Crematorium,HC200,Fees For Services Received,5350,Crem Fees November 2016,30/11/2016,426876,1231.52,NET,Dr C M Stretton,00306P
Gloucester City Council,23UE,Crematorium,HC200,Memorial Plaques,5053,MEMORIAL PLAQUES,30/11/2016,426775,204,NET,Arkell & Hurcombe,59812T
Gloucester City Council,23UE,Development Management,PT200,Advertising And Publicity,5702,adverts 22/11/16,30/11/2016,426795,146.08,NET,Local World Ltd,08556P
Gloucester City Council,23UE,Guildhall Events,LA200,Advertising And Publicity,5702,ADVERTS 16/11/16,30/11/2016,426780,70,NET,Forest Of Dean & Wye Valley Review,14590K
Gloucester City Council,23UE,REDACTED,REDACTED,REDACTED,REDACTED,REDACTED,30/11/2016,REDACTED,56.25,NET,REDACTED,REDACTED
Gloucester City Council,23UE,REDACTED,REDACTED,REDACTED,REDACTED,REDACTED,30/11/2016,REDACTED,300,NET,REDACTED,REDACTED
Gloucester City Council,23UE,Hackney Carriages,HL100,Ni - Technical Staff,1559,LICENCE PLATE SETS,30/11/2016,426800,249,NET,Mogo Uk,56615B
Gloucester City Council,23UE,Hackney Carriages,HL100,Other Minor Supplies Services,5590,LICENCE PLATE SETS,30/11/2016,426800,302.9,NET,Mogo Uk,56615B
Gloucester City Council,23UE,Homelessness,CH120,Removal And Storage Fees,5513,storage fees,30/11/2016,426804,39.11,NET,Advanced Removals & Storage Ltd,57142R
Gloucester City Council,23UE,Homelessness,CH120,Removal And Storage Fees,5513,storage fees,30/11/2016,426805,39.86,NET,Advanced Removals & Storage Ltd,57142R
Gloucester City Council,23UE,Homelessness,CH120,Removal And Storage Fees,5513,storage fees,30/11/2016,426806,78.21,NET,Advanced Removals & Storage Ltd,57142R
Gloucester City Council,23UE,Homelessness,CH120,Removal And Storage Fees,5513,storage fees,30/11/2016,426807,39.11,NET,Advanced Removals & Storage Ltd,57142R
Gloucester City Council,23UE,Homelessness,CH120,Removal And Storage Fees,5513,storage fees,30/11/2016,426808,78.21,NET,Advanced Removals & Storage Ltd,57142R
Gloucester City Council,23UE,Homelessness,CH120,Removal And Storage Fees,5513,storage fees,30/11/2016,426811,78.21,NET,Advanced Removals & Storage Ltd,57142R
Gloucester City Council,23UE,Homelessness,CH120,Removal And Storage Fees,5513,storage fees,30/11/2016,426812,79.71,NET,Advanced Removals & Storage Ltd,57142R
Gloucester City Council,23UE,Homelessness,CH120,Removal And Storage Fees,5513,storage fees,30/11/2016,426813,79.71,NET,Advanced Removals & Storage Ltd,57142R
Gloucester City Council,23UE,Homelessness,CH120,Removal And Storage Fees,5513,storage fees,30/11/2016,426814,159.43,NET,Advanced Removals & Storage Ltd,57142R
Gloucester City Council,23UE,Homelessness,CH120,Removal And Storage Fees,5513,storage fees,30/11/2016,426815,117.32,NET,Advanced Removals & Storage Ltd,57142R
Gloucester City Council,23UE,Homelessness,CH120,Removal And Storage Fees,5513,storage fees,30/11/2016,426816,15.43,NET,Advanced Removals & Storage Ltd,57142R
Gloucester City Council,23UE,Homelessness,CH120,Removal And Storage Fees,5513,storage fees,30/11/2016,426818,128.57,NET,Advanced Removals & Storage Ltd,57142R
Gloucester City Council,23UE,Homelessness,CH120,Removal And Storage Fees,5513,storage fees,30/11/2016,426819,39.11,NET,Advanced Removals & Storage Ltd,57142R
Gloucester City Council,23UE,Homelessness,CH120,Removal And Storage Fees,5513,STORAGE FEES,30/11/2016,426803,191.25,NET,Advanced Removals & Storage Ltd,57142R
Gloucester City Council,23UE,Homelessness,CH120,Removal And Storage Fees,5513,STORAGE FEES,30/11/2016,426809,159.43,NET,Advanced Removals & Storage Ltd,57142R
Gloucester City Council,23UE,Homelessness,CH120,Removal And Storage Fees,5513,STORAGE FEES,30/11/2016,426810,156.43,NET,Advanced Removals & Storage Ltd,57142R
Gloucester City Council,23UE,Investment Property,RB500,General Repair/Maint Buildings,3000,Woods Supply,30/11/2016,425296,163.84,NET,Mitchells (Gloucester) Ltd,30160U
Gloucester City Council,23UE,Pollution Control,HE300,Fees For Services Received,5350,Collection & Diposal Fee,30/11/2016,426382,80,NET,Harry Buckland,16135W
Gloucester City Council,23UE,Pollution Control,HE300,Fees For Services Received,5350,Collection & Disposal fees,30/11/2016,426354,80,NET,Harry Buckland,16135W
Gloucester City Council,23UE,Pollution Control,HE300,Fees For Services Received,5350,vehicle disposal,30/11/2016,426517,80,NET,Harry Buckland,16135W
Gloucester City Council,23UE,Pollution Control,HE300,Fees For Services Received,5350,vehicle disposal,30/11/2016,426518,80,NET,Harry Buckland,16135W
Gloucester City Council,23UE,Pollution Control,HE300,Fees For Services Received,5350,vehicle disposal,30/11/2016,426519,80,NET,Harry Buckland,16135W
Gloucester City Council,23UE,Pollution Control,HE300,Fees For Services Received,5350,vehicle disposal,30/11/2016,426520,80,NET,Harry Buckland,16135W
Gloucester City Council,23UE,Pollution Control,HE300,Fees For Services Received,5350,vehicle disposal,30/11/2016,426521,80,NET,Harry Buckland,16135W
Gloucester City Council,23UE,Pollution Control,HE300,Fees For Services Received,5350,vehicle disposal,30/11/2016,426522,80,NET,Harry Buckland,16135W
Gloucester City Council,23UE,Pollution Control,HE300,Fees For Services Received,5350,vehicle disposal,30/11/2016,426523,80,NET,Harry Buckland,16135W
Gloucester City Council,23UE,Pollution Control,HE300,Fees For Services Received,5350,vehicle disposal,30/11/2016,426524,80,NET,Harry Buckland,16135W
Gloucester City Council,23UE,Pollution Control,HE300,Fees For Services Received,5350,Volvo - Collection & Disposal Fee,30/11/2016,426045,80,NET,Harry Buckland,16135W
Gloucester City Council,23UE,Printing,RP103,Printing,5300,Diary Sheets,30/11/2016,426879,290,NET,Alpha Colour Printers Ltd,00945B
Gloucester City Council,23UE,Printing,RP103,Printing,5300,Sales August 2016,30/11/2016,426878,194.35,NET,Alpha Colour Printers Ltd,00945B
Gloucester City Council,23UE,Printing,RP103,Printing,5300,Various Prints,30/11/2016,426880,784,NET,Alpha Colour Printers Ltd,00945B
Gloucester City Council,23UE,Rehousing,CH111,Fees For Services Received,5350,MEDICAL REPORT,30/11/2016,426801,20.5,NET,Gloucester City Health Centre,02093U
Gloucester City Council,23UE,Retail Market - Landlord,HM300,Operational Equipment <5000,5012,Eastgate Market - Works,30/11/2016,425731,1987.73,NET,Mitchells (Gloucester) Ltd,30160U
Gloucester City Council,23UE,Shopmobility,PE200,Other Minor Supplies Services,5590,Pension Scheme Calculations,30/11/2016,426577,1940.4,NET,Gloucestershire County Council,10614L
Gloucester City Council,23UE,The Arbor,HC501,Catering Provisions -Food,5110,food,30/11/2016,426833,137.38,NET,Bidvest Foodservice (3663),55585U
Gloucester City Council,23UE,The Arbor,HC501,Catering Provisions -Food,5110,FOOD,30/11/2016,426783,34.32,NET,Total Produce Gloucester,12645E
Gloucester City Council,23UE,The Arbor,HC501,Catering Provisions -Food,5110,FOOD,30/11/2016,426788,201.97,NET,Bidvest Foodservice (3663),55585U
Gloucester City Council,23UE,Townscape Heritage Initiative,LY145,Contract Payments,0020,St Mary De Crypt stonework,30/11/2016,426837,7492,CAP,Bourne Masonry,15013X
Gloucester City Council,23UE,Business Transformation & Tech,RT700,Computer Hardware Maintenance,5426,Lease Charge Sep - Nov 2016,01/12/2016,426063,210,NET,Stanford Marsh Ltd,51139M
Gloucester City Council,23UE,Business Transformation & Tech,RT700,Computer Hardware Maintenance,5426,Lease Sep - Nov 2016,01/12/2016,426062,315,NET,Stanford Marsh Ltd,51139M
Gloucester City Council,23UE,City Museum And Art Gallery,LM200,Publications For Sale,5064,goods for resale,01/12/2016,423420,105.12,NET,The Puppet Company,14242N
Gloucester City Council,23UE,General Works Fund,RY203,Capital General Repairs & Main,0013,Reskinning of lift doors,01/12/2016,426771,1480,CAP,Thyssenkrupp Elevator Uk Ltd,17194U
Gloucester City Council,23UE,Herbert Reception Upgrade,RY201,Capital Lifts,0024,Lift Refurbishments,01/12/2016,426770,33950,CAP,Thyssenkrupp Elevator Uk Ltd,17194U
Gloucester City Council,23UE,Statutory Testing,RS310,Fire Alarm Maintenance,3053,line charges JUL-SEP16,01/12/2016,424944,401.1,NET,Adt Fire & Security Plc,54086D
Gloucester City Council,23UE,Statutory Testing,RS310,Fire Alarm Maintenance,3053,Replacement Dual Sensor,01/12/2016,426828,506.38,NET,Allcoopers Ltd,52921E
Gloucester City Council,23UE,Financial Services,RT200,Fees For Services Received,5350,Colour Prints,,425287,29177.89,NET,Danwood Group Limited,09555G
Gloucester City Council,23UE,Interpretation & Signage,GY012,Contract Payments,0020,building wrap design,,426703,910,CAP,Signboard Services Ltd,17269M
Gloucester City Council,23UE,Off Street Car Parks,PP110,Rents,3200,9a Eastgate access SC DEC16-MAR17,,426678,842.74,NET,Workman Llp,11021M
Gloucester City Council,23UE,Off Street Car Parks,PP110,Rents,3200,Car park office SC DEC16-MAR17,,426681,347.03,NET,Workman Llp,11021M
Gloucester City Council,23UE,Off Street Car Parks,PP110,Service Charges,3020,Car park office SC DEC16-MAR17,,426681,5.25,NET,Workman Llp,11021M
,,,,,,,,Sum:,1954915.21,,,
